Workbook

Sheet Introduction (hidden)
B3: What is the Credit pricing spreadsheet for?
B5: How the TFD calculation works?
C7: What types of costs can be included (see Reg) / reference to the mgt actions
C8: Why 20 year period has been adopted?
C9: Calculation of the PV of the management costs using Gazzetted discount rates
C10: (Note: PV calculaitn is based on the payments made from the TF to the landowenrat the beginning of the period)
C11: Reference to the adopted discount rates and the lengths of the investment periods.
C12: (Note: There is an implicid risk marigin incorporated in the TFD calcautions derived from assuming a real discount rate that is less than the expected real investment rate.)

Sheet Quick guide

Sheet TFD Calculator
B2: Total Fund Deposit Calculator
B5: Site name
B6: Site location (Lot/DP or address)
I8: Discount rate
I9: 0.032
B12: Management plan section | C12: TFD item # | D12: Management action item | E12: Timing | H12: Estimated annual cost ($) | I12: Year | AC12: Present value of payments for first 20 yrs | AD12: Present value of payments after 20 yrs | AE12: Present value of all payments
E13: Start year | F13: End year | G13: Frequency | I13: 1 | J13: 2 | K13: 3 | L13: 4 | M13: 5 | N13: 6 | O13: 7 | P13: 8 | Q13: 9 | R13: 10 | S13: 11 | T13: 12 | U13: 13 | V13: 14 | W13: 15 | X13: 16 | Y13: 17 | Z13: 18 | AA13: 19 | AB13: 20
I14: =IF(OR(ISBLANK($E14),$E14>I$13),0,IF(AND(NOT(ISBLANK($F14)),I$13>$F14),0,IF(MOD((I$13-$E14),MAX($G14,1))=0,$H14,0))) -> 0 | J14: 0 | K14: 0 | L14: 0 | M14: 0 | N14: 0 | O14: 0 | P14: 0 | Q14: 0 | R14: 0 | S14: =IF(OR(ISBLANK($E14),$E14>S$13),0,IF(AND(NOT(ISBLANK($F14)),S$13>$F14),0,IF(MOD((S$13-$E14),MAX($G14,1))=0,$H14,0))) -> 0 | T14: 0 | U14: 0 | V14: 0 | W14: 0 | X14: 0 | Y14: 0 | Z14: 0 | AA14: 0 | AB14: 0 | AC14: =+SUMPRODUCT(I14:AB14,$I$37:$AB$37) -> 0 | AD14: =(IF(ISBLANK(E14),0,IF(F14,0,((1+$I$9)^MOD($AB$13-E14,MAX(G14,1)))*((1+$I$9)^-$AB$13)*H14/((1+$I$9)^(MAX(G14,1))-1))))*(1+$I$9) -> 0 | AE14: =+AC14+AD14 -> 0
I15: 0 | J15: 0 | K15: 0 | L15: 0 | M15: 0 | N15: 0 | O15: 0 | P15: 0 | Q15: 0 | R15: 0 | S15: 0 | T15: 0 | U15: 0 | V15: 0 | W15: 0 | X15: 0 | Y15: 0 | Z15: 0 | AA15: 0 | AB15: 0 | AC15: 0 | AD15: =(IF(ISBLANK(E15),0,IF(F15,0,((1+$I$9)^MOD($AB$13-E15,MAX(G15,1)))*((1+$I$9)^-$AB$13)*H15/((1+$I$9)^(MAX(G15,1))-1))))*(1+$I$9) -> 0 | AE15: =+AC15+AD15 -> 0
I16: 0 | J16: 0 | K16: 0 | L16: 0 | M16: 0 | N16: 0 | O16: 0 | P16: 0 | Q16: 0 | R16: 0 | S16: 0 | T16: 0 | U16: 0 | V16: 0 | W16: 0 | X16: 0 | Y16: 0 | Z16: 0 | AA16: 0 | AB16: 0 | AC16: 0 | AD16: 0 | AE16: 0
I17: 0 | J17: 0 | K17: 0 | L17: 0 | M17: 0 | N17: 0 | O17: 0 | P17: 0 | Q17: 0 | R17: 0 | S17: 0 | T17: 0 | U17: 0 | V17: 0 | W17: 0 | X17: 0 | Y17: 0 | Z17: 0 | AA17: 0 | AB17: 0 | AC17: 0 | AD17: 0 | AE17: 0
I18: 0 | J18: 0 | K18: 0 | L18: 0 | M18: 0 | N18: 0 | O18: 0 | P18: 0 | Q18: 0 | R18: 0 | S18: 0 | T18: 0 | U18: 0 | V18: 0 | W18: 0 | X18: 0 | Y18: 0 | Z18: 0 | AA18: 0 | AB18: 0 | AC18: 0 | AD18: 0 | AE18: 0
I19: 0 | J19: 0 | K19: 0 | L19: 0 | M19: 0 | N19: 0 | O19: 0 | P19: 0 | Q19: 0 | R19: 0 | S19: 0 | T19: 0 | U19: 0 | V19: 0 | W19: 0 | X19: 0 | Y19: 0 | Z19: 0 | AA19: 0 | AB19: 0 | AC19: 0 | AD19: =(IF(ISBLANK(E19),0,IF(F19,0,((1+$I$9)^MOD($AB$13-E19,MAX(G19,1)))*((1+$I$9)^-$AB$13)*H19/((1+$I$9)^(MAX(G19,1))-1))))*(1+$I$9) -> 0 | AE19: 0
I20: 0 | J20: 0 | K20: 0 | L20: 0 | M20: 0 | N20: 0 | O20: 0 | P20: 0 | Q20: 0 | R20: 0 | S20: 0 | T20: 0 | U20: 0 | V20: 0 | W20: 0 | X20: 0 | Y20: 0 | Z20: 0 | AA20: 0 | AB20: 0 | AC20: 0 | AD20: 0 | AE20: 0
I21: 0 | J21: 0 | K21: 0 | L21: 0 | M21: 0 | N21: 0 | O21: 0 | P21: 0 | Q21: 0 | R21: 0 | S21: 0 | T21: 0 | U21: 0 | V21: 0 | W21: 0 | X21: 0 | Y21: 0 | Z21: 0 | AA21: 0 | AB21: 0 | AC21: 0 | AD21: 0 | AE21: 0
I22: 0 | J22: 0 | K22: 0 | L22: 0 | M22: 0 | N22: 0 | O22: 0 | P22: 0 | Q22: 0 | R22: 0 | S22: 0 | T22: 0 | U22: 0 | V22: 0 | W22: 0 | X22: 0 | Y22: 0 | Z22: 0 | AA22: 0 | AB22: 0 | AC22: 0 | AD22: =(IF(ISBLANK(E22),0,IF(F22,0,((1+$I$9)^MOD($AB$13-E22,MAX(G22,1)))*((1+$I$9)^-$AB$13)*H22/((1+$I$9)^(MAX(G22,1))-1))))*(1+$I$9) -> 0 | AE22: =+AC22+AD22 -> 0
I23: 0 | J23: 0 | K23: 0 | L23: 0 | M23: 0 | N23: 0 | O23: 0 | P23: 0 | Q23: 0 | R23: 0 | S23: 0 | T23: 0 | U23: 0 | V23: 0 | W23: 0 | X23: 0 | Y23: 0 | Z23: 0 | AA23: 0 | AB23: 0 | AC23: 0 | AD23: =(IF(ISBLANK(E23),0,IF(F23,0,((1+$I$9)^MOD($AB$13-E23,MAX(G23,1)))*((1+$I$9)^-$AB$13)*H23/((1+$I$9)^(MAX(G23,1))-1))))*(1+$I$9) -> 0 | AE23: =+AC23+AD23 -> 0
I24: 0 | J24: 0 | K24: 0 | L24: 0 | M24: 0 | N24: 0 | O24: 0 | P24: 0 | Q24: 0 | R24: 0 | S24: 0 | T24: 0 | U24: 0 | V24: 0 | W24: 0 | X24: 0 | Y24: 0 | Z24: 0 | AA24: 0 | AB24: 0 | AC24: 0 | AD24: 0 | AE24: 0
B25: Management plan section | C25: TFD item # | D25: Other recurring management items and costs | H25: Estimated annual cost ($)
D26: Annual reporting fee (2023/24 financial year) | E26: 1 | G26: 1 | H26: 1785 | I26: =IF(OR(ISBLANK($E26),$E26>I$13),0,IF(AND(NOT(ISBLANK($F26)),I$13>$F26),0,IF(MOD((I$13-$E26),MAX($G26,1))=0,$H26,0))) -> 1785 | J26: 1785 | K26: 1785 | L26: 1785 | M26: 1785 | N26: 1785 | O26: 1785 | P26: 1785 | Q26: 1785 | R26: 1785 | S26: =IF(OR(ISBLANK($E26),$E26>S$13),0,IF(AND(NOT(ISBLANK($F26)),S$13>$F26),0,IF(MOD((S$13-$E26),MAX($G26,1))=0,$H26,0))) -> 1785 | T26: 1785 | U26: 1785 | V26: 1785 | W26: 1785 | X26: 1785 | Y26: 1785 | Z26: 1785 | AA26: 1785 | AB26: 1785 | AC26: =+SUMPRODUCT(I26:AB26,$I$37:$AB$37) -> 26906.11988 | AD26: =(IF(ISBLANK(E26),0,IF(F26,0,((1+$I$9)^MOD($AB$13-E26,MAX(G26,1)))*((1+$I$9)^-$AB$13)*H26/((1+$I$9)^(MAX(G26,1))-1))))*(1+$I$9) -> 30660.13012 | AE26: =+AC26+AD26 -> 57566.25
I27: =IF(OR(ISBLANK($E27),$E27>I$13),0,IF(AND(NOT(ISBLANK($F27)),I$13>$F27),0,IF(MOD((I$13-$E27),MAX($G27,1))=0,$H27,0))) -> 0 | J27: 0 | K27: 0 | L27: 0 | M27: 0 | N27: 0 | O27: 0 | P27: 0 | Q27: 0 | R27: 0 | S27: 0 | T27: 0 | U27: 0 | V27: 0 | W27: 0 | X27: 0 | Y27: 0 | Z27: 0 | AA27: 0 | AB27: 0 | AC27: 0 | AD27: =(IF(ISBLANK(E27),0,IF(F27,0,((1+$I$9)^MOD($AB$13-E27,MAX(G27,1)))*((1+$I$9)^-$AB$13)*H27/((1+$I$9)^(MAX(G27,1))-1))))*(1+$I$9) -> 0 | AE27: 0
I28: 0 | J28: 0 | K28: 0 | L28: 0 | M28: 0 | N28: 0 | O28: 0 | P28: 0 | Q28: 0 | R28: 0 | S28: 0 | T28: 0 | U28: 0 | V28: 0 | W28: 0 | X28: 0 | Y28: 0 | Z28: 0 | AA28: 0 | AB28: 0 | AC28: 0 | AD28: 0 | AE28: 0
I29: =IF(OR(ISBLANK($E29),$E29>I$13),0,IF(AND(NOT(ISBLANK($F29)),I$13>$F29),0,IF(MOD((I$13-$E29),MAX($G29,1))=0,$H29,0))) -> 0 | J29: 0 | K29: 0 | L29: 0 | M29: 0 | N29: 0 | O29: 0 | P29: 0 | Q29: 0 | R29: 0 | S29: 0 | T29: 0 | U29: 0 | V29: 0 | W29: 0 | X29: 0 | Y29: 0 | Z29: 0 | AA29: 0 | AB29: 0 | AC29: 0 | AD29: =(IF(ISBLANK(E29),0,IF(F29,0,((1+$I$9)^MOD($AB$13-E29,MAX(G29,1)))*((1+$I$9)^-$AB$13)*H29/((1+$I$9)^(MAX(G29,1))-1))))*(1+$I$9) -> 0 | AE29: =+AC29+AD29 -> 0
I30: 0 | J30: 0 | K30: 0 | L30: 0 | M30: 0 | N30: 0 | O30: 0 | P30: 0 | Q30: 0 | R30: 0 | S30: 0 | T30: 0 | U30: 0 | V30: 0 | W30: 0 | X30: 0 | Y30: 0 | Z30: 0 | AA30: 0 | AB30: 0 | AC30: 0 | AD30: =(IF(ISBLANK(E30),0,IF(F30,0,((1+$I$9)^MOD($AB$13-E30,MAX(G30,1)))*((1+$I$9)^-$AB$13)*H30/((1+$I$9)^(MAX(G30,1))-1))))*(1+$I$9) -> 0 | AE30: =+AC30+AD30 -> 0
I31: 0 | J31: 0 | K31: 0 | L31: 0 | M31: 0 | N31: 0 | O31: 0 | P31: 0 | Q31: 0 | R31: 0 | S31: 0 | T31: 0 | U31: 0 | V31: 0 | W31: 0 | X31: 0 | Y31: 0 | Z31: 0 | AA31: 0 | AB31: 0 | AC31: 0 | AD31: 0 | AE31: 0
I32: 0 | J32: 0 | K32: 0 | L32: 0 | M32: 0 | N32: 0 | O32: 0 | P32: 0 | Q32: 0 | R32: 0 | S32: 0 | T32: 0 | U32: 0 | V32: 0 | W32: 0 | X32: 0 | Y32: 0 | Z32: 0 | AA32: 0 | AB32: 0 | AC32: 0 | AD32: 0 | AE32: 0
I33: 0 | J33: 0 | K33: 0 | L33: 0 | M33: 0 | N33: 0 | O33: 0 | P33: 0 | Q33: 0 | R33: 0 | S33: 0 | T33: 0 | U33: 0 | V33: 0 | W33: 0 | X33: 0 | Y33: 0 | Z33: 0 | AA33: 0 | AB33: 0 | AC33: 0 | AD33: 0 | AE33: 0
H34: Site management cost in today's value | I34: =SUM(I26:I33)+SUM(I14:I24) -> 1785 | J34: 1785 | K34: 1785 | L34: 1785 | M34: 1785 | N34: 1785 | O34: 1785 | P34: 1785 | Q34: 1785 | R34: 1785 | S34: 1785 | T34: 1785 | U34: 1785 | V34: 1785 | W34: 1785 | X34: 1785 | Y34: 1785 | Z34: 1785 | AA34: 1785 | AB34: 1785 | AE34: Total Trust Fund Deposit
H35: Present Value (PV) of the site management cost | I35: =I34*(1+$I$9)^-(I13-1) -> 1785 | J35: 1729.651163 | K35: 1676.018569 | L35: 1624.049001 | M35: 1573.690892 | N35: 1524.894275 | O35: 1477.610732 | P35: 1431.793345 | Q35: 1387.396652 | R35: 1344.376601 | S35: 1302.690505 | T35: 1262.297001 | U35: 1223.156008 | V35: 1185.22869 | W35: 1148.477413 | X35: 1112.86571 | Y35: 1078.358246 | Z35: 1044.920781 | AA35: 1012.520137 | AB35: 981.1241637 | AC35: =SUM(AC26:AC33)+SUM(AC14:AC24) -> 26906.11988 | AD35: =SUM(AD26:AD33)+SUM(AD14:AD24) -> 30660.13012 | AE35: =+AC35+AD35 -> 57566.25
G37: Discount factor | I37: =+(1+$I$9)^-(I13-1) -> 1 | J37: 0.9689922481 | K37: 0.9389459768 | L37: 0.9098313729 | M37: 0.8816195474 | N37: 0.8542825071 | O37: 0.8277931271 | P37: 0.8021251231 | Q37: 0.7772530263 | R37: 0.7531521572 | S37: 0.729798602 | T37: 0.707169188 | U37: 0.6852414612 | V37: 0.663993664 | W37: 0.6434047131 | X37: 0.6234541794 | Y37: 0.6041222669 | Z37: 0.5853897935 | AA37: 0.567238172 | AB37: 0.5496493914
I39: Year | AC39: Present value of payments during first 20 yrs | AD39: Present value of payments after 20 yrs | AE39: Present value of all payments
I40: 1 | J40: 2 | K40: 3 | L40: 4 | M40: 5 | N40: 6 | O40: 7 | P40: 8 | Q40: 9 | R40: 10 | S40: 11 | T40: 12 | U40: 13 | V40: 14 | W40: 15 | X40: 16 | Y40: 17 | Z40: 18 | AA40: 19 | AB40: 20
D41: Annual site management costs in today's values | I41: =I34 -> 1785 | J41: 1785 | K41: 1785 | L41: 1785 | M41: 1785 | N41: 1785 | O41: 1785 | P41: 1785 | Q41: 1785 | R41: 1785 | S41: 1785 | T41: 1785 | U41: 1785 | V41: 1785 | W41: 1785 | X41: 1785 | Y41: 1785 | Z41: 1785 | AA41: 1785 | AB41: 1785 | AC41: =AC35 -> 26906.11988 | AD41: =AD35 -> 30660.13012 | AE41: =AE35 -> 57566.25
D42: Annual reporting fee | I42: =I26 -> 1785 | J42: 1785 | K42: 1785 | L42: 1785 | M42: 1785 | N42: 1785 | O42: 1785 | P42: 1785 | Q42: 1785 | R42: 1785 | S42: 1785 | T42: 1785 | U42: 1785 | V42: 1785 | W42: 1785 | X42: 1785 | Y42: 1785 | Z42: 1785 | AA42: 1785 | AB42: 1785 | AC42: 26906.11988 | AD42: 30660.13012 | AE42: 57566.25
D43: Total amount payable to landowner (excluding GST) | I43: =I41-I42 -> 0 | J43: =J41-J42 -> 0 | K43: 0 | L43: 0 | M43: 0 | N43: 0 | O43: 0 | P43: 0 | Q43: 0 | R43: 0 | S43: 0 | T43: 0 | U43: 0 | V43: 0 | W43: 0 | X43: 0 | Y43: 0 | Z43: 0 | AA43: 0 | AB43: 0 | AC43: 0 | AD43: 0 | AE43: 0
D44: GST payable to landowner | I44: =I43*0.1 -> 0 | J44: =J43*0.1 -> 0 | K44: =K43*0.1 -> 0 | L44: 0 | M44: 0 | N44: 0 | O44: 0 | P44: 0 | Q44: 0 | R44: 0 | S44: 0 | T44: 0 | U44: 0 | V44: 0 | W44: 0 | X44: 0 | Y44: 0 | Z44: 0 | AA44: 0 | AB44: 0 | AC44: =AC43*0.1 -> 0 | AD44: =AD43*0.1 -> 0 | AE44: =AE43*0.1 -> 0
D45: Total amount payable to landowner (including GST) | I45: =I43*1.1 -> 0 | J45: =J43*1.1 -> 0 | K45: =K43*1.1 -> 0 | L45: 0 | M45: 0 | N45: 0 | O45: 0 | P45: 0 | Q45: 0 | R45: 0 | S45: 0 | T45: 0 | U45: 0 | V45: 0 | W45: 0 | X45: 0 | Y45: 0 | Z45: 0 | AA45: 0 | AB45: 0 | AC45: =AC43*1.1 -> 0 | AD45: =AD43*1.1 -> 0 | AE45: =AE43*1.1 -> 0
H93: Data for spreadsheet function use only
E95: 1
E96: =+E95+1 -> 2 | I96: Mand | J96: Rec
E97: =+E96+1 -> 3 | H97: cell | I97: =+ADDRESS(13+$I$99,1) -> $A$24 | J97: =+ADDRESS($I$99+$J$99+15,1) -> $A$33
E98: 4 | H98: row num | I98: =RIGHT($I$97,LEN($I$97)-FIND("$",$I$97,3)) -> 24 | J98: =RIGHT($J$97,LEN($J$97)-FIND("$",$J$97,3)) -> 33
E99: 5 | H99: mand count | I99: =+COUNT(I14:I24) -> 11 | J99: =+COUNT(I27:I33) -> 7
E100: 6
E101: 7
E102: 8 | H102: Yes
E103: 9 | H103: No
E104: 10
E105: 11
E106: 12
E107: 13
E108: 14
E109: 15
E110: 16
E111: 17
E112: 18
E113: 19
E114: 20

Sheet Table for BSA (hidden)
B2: Years 1 to 20
B3: Payment to be made at the beginning of: | C3: Payment Amount (excluding GST)
B4: First Payment Year | C4: ='TFD Calculator'!I$43 -> 0
B5: Second Payment Year | C5: ='TFD Calculator'!J$43 -> 0
B6: Third Payment Year | C6: ='TFD Calculator'!K$43 -> 0
B7: Fourth Payment Year | C7: ='TFD Calculator'!L$43 -> 0
B8: Fifth Payment Year | C8: ='TFD Calculator'!M$43 -> 0
B9: Sixth Payment Year | C9: ='TFD Calculator'!N$43 -> 0
B10: Seventh Payment Year | C10: ='TFD Calculator'!O$43 -> 0
B11: Eighth Payment Year | C11: ='TFD Calculator'!P$43 -> 0
B12: Ninth Payment Year | C12: ='TFD Calculator'!Q$43 -> 0
B13: Tenth Payment Year | C13: ='TFD Calculator'!R$43 -> 0
B14: Eleventh Payment Year | C14: ='TFD Calculator'!S$43 -> 0
B15: Twelfth Payment Year | C15: ='TFD Calculator'!T$43 -> 0
B16: Thirteenth Payment Year | C16: ='TFD Calculator'!U$43 -> 0
B17: Fourteenth Payment Year | C17: ='TFD Calculator'!V$43 -> 0
B18: Fifteenth Payment Year | C18: ='TFD Calculator'!W$43 -> 0
B19: Sixteenth Payment Year | C19: ='TFD Calculator'!X$43 -> 0
B20: Seventeenth Payment Year | C20: ='TFD Calculator'!Y$43 -> 0
B21: Eighteenth Payment Year | C21: ='TFD Calculator'!Z$43 -> 0
B22: Nineteenth Payment Year | C22: ='TFD Calculator'!AA$43 -> 0
B23: Twentieth Payment Year | C23: ='TFD Calculator'!AB$43 -> 0
B24: Ongoing (year 21 and beyond)
B25: Description | C25: Next instance | D25: Frequency thereafter | E25: Amount
B26: =_xlfn._xlws.FILTER(INDIRECT("'TFD Calculator'!D14:D"&'TFD Calculator'!J98),INDIRECT("'TFD Calculator'!AD14:AD"&'TFD Calculator'!J98)>0,"No costs after year 20") -> Annual reporting fee (2023/24 financial year) | C26: =IFERROR(IF(MOD(20-H26,D26)=0,"Year "&MOD(20-H26,D26)+20+D26,"Year "&20-MOD(20-H26,D26)+D26),"") -> Year 21 | D26: =IFERROR(INDEX(INDIRECT("'TFD Calculator'!D14:H"&'TFD Calculator'!$J$98),MATCH(B26,INDIRECT("'TFD Calculator'!D14:D"&'TFD Calculator'!$J$98),0),4),"") -> 1 | E26: =IFERROR(INDEX(INDIRECT("'TFD Calculator'!D14:H"&'TFD Calculator'!$J$98),MATCH(B26,INDIRECT("'TFD Calculator'!D14:D"&'TFD Calculator'!$J$98),0),5),"") -> 1785 | H26: =IFERROR(INDEX(INDIRECT("'TFD Calculator'!D14:H"&'TFD Calculator'!$J$98),MATCH(B26,INDIRECT("'TFD Calculator'!D14:D"&'TFD Calculator'!$J$98),0),2),"") -> 1
D27: =IFERROR(INDEX(INDIRECT("'TFD Calculator'!D14:H"&'TFD Calculator'!$J$98),MATCH(B27,INDIRECT("'TFD Calculator'!D14:D"&'TFD Calculator'!$J$98),0),4),"") ->  | E27: =IFERROR(INDEX(INDIRECT("'TFD Calculator'!D14:H"&'TFD Calculator'!$J$98),MATCH(B27,INDIRECT("'TFD Calculator'!D14:D"&'TFD Calculator'!$J$98),0),5),"") ->  | H27: =IFERROR(INDEX(INDIRECT("'TFD Calculator'!D14:H"&'TFD Calculator'!$J$98),MATCH(B27,INDIRECT("'TFD Calculator'!D14:D"&'TFD Calculator'!$J$98),0),2),"") -> 
D28: =IFERROR(INDEX(INDIRECT("'TFD Calculator'!D14:H"&'TFD Calculator'!$J$98),MATCH(B28,INDIRECT("'TFD Calculator'!D14:D"&'TFD Calculator'!$J$98),0),4),"") ->  | E28: =IFERROR(INDEX(INDIRECT("'TFD Calculator'!D14:H"&'TFD Calculator'!$J$98),MATCH(B28,INDIRECT("'TFD Calculator'!D14:D"&'TFD Calculator'!$J$98),0),5),"") ->  | H28: =IFERROR(INDEX(INDIRECT("'TFD Calculator'!D14:H"&'TFD Calculator'!$J$98),MATCH(B28,INDIRECT("'TFD Calculator'!D14:D"&'TFD Calculator'!$J$98),0),2),"") -> 
D29: =IFERROR(INDEX(INDIRECT("'TFD Calculator'!D14:H"&'TFD Calculator'!$J$98),MATCH(B29,INDIRECT("'TFD Calculator'!D14:D"&'TFD Calculator'!$J$98),0),4),"") ->  | E29: =IFERROR(INDEX(INDIRECT("'TFD Calculator'!D14:H"&'TFD Calculator'!$J$98),MATCH(B29,INDIRECT("'TFD Calculator'!D14:D"&'TFD Calculator'!$J$98),0),5),"") ->  | H29: =IFERROR(INDEX(INDIRECT("'TFD Calculator'!D14:H"&'TFD Calculator'!$J$98),MATCH(B29,INDIRECT("'TFD Calculator'!D14:D"&'TFD Calculator'!$J$98),0),2),"") -> 
D30: =IFERROR(INDEX(INDIRECT("'TFD Calculator'!D14:H"&'TFD Calculator'!$J$98),MATCH(B30,INDIRECT("'TFD Calculator'!D14:D"&'TFD Calculator'!$J$98),0),4),"") ->  | E30: =IFERROR(INDEX(INDIRECT("'TFD Calculator'!D14:H"&'TFD Calculator'!$J$98),MATCH(B30,INDIRECT("'TFD Calculator'!D14:D"&'TFD Calculator'!$J$98),0),5),"") ->  | H30: =IFERROR(INDEX(INDIRECT("'TFD Calculator'!D14:H"&'TFD Calculator'!$J$98),MATCH(B30,INDIRECT("'TFD Calculator'!D14:D"&'TFD Calculator'!$J$98),0),2),"") -> 
D31: =IFERROR(INDEX(INDIRECT("'TFD Calculator'!D14:H"&'TFD Calculator'!$J$98),MATCH(B31,INDIRECT("'TFD Calculator'!D14:D"&'TFD Calculator'!$J$98),0),4),"") ->  | E31: =IFERROR(INDEX(INDIRECT("'TFD Calculator'!D14:H"&'TFD Calculator'!$J$98),MATCH(B31,INDIRECT("'TFD Calculator'!D14:D"&'TFD Calculator'!$J$98),0),5),"") ->  | H31: =IFERROR(INDEX(INDIRECT("'TFD Calculator'!D14:H"&'TFD Calculator'!$J$98),MATCH(B31,INDIRECT("'TFD Calculator'!D14:D"&'TFD Calculator'!$J$98),0),2),"") -> 
D32: =IFERROR(INDEX(INDIRECT("'TFD Calculator'!D14:H"&'TFD Calculator'!$J$98),MATCH(B32,INDIRECT("'TFD Calculator'!D14:D"&'TFD Calculator'!$J$98),0),4),"") ->  | E32: =IFERROR(INDEX(INDIRECT("'TFD Calculator'!D14:H"&'TFD Calculator'!$J$98),MATCH(B32,INDIRECT("'TFD Calculator'!D14:D"&'TFD Calculator'!$J$98),0),5),"") ->  | H32: =IFERROR(INDEX(INDIRECT("'TFD Calculator'!D14:H"&'TFD Calculator'!$J$98),MATCH(B32,INDIRECT("'TFD Calculator'!D14:D"&'TFD Calculator'!$J$98),0),2),"") -> 
D33: =IFERROR(INDEX(INDIRECT("'TFD Calculator'!D14:H"&'TFD Calculator'!$J$98),MATCH(B33,INDIRECT("'TFD Calculator'!D14:D"&'TFD Calculator'!$J$98),0),4),"") ->  | E33: =IFERROR(INDEX(INDIRECT("'TFD Calculator'!D14:H"&'TFD Calculator'!$J$98),MATCH(B33,INDIRECT("'TFD Calculator'!D14:D"&'TFD Calculator'!$J$98),0),5),"") ->  | H33: =IFERROR(INDEX(INDIRECT("'TFD Calculator'!D14:H"&'TFD Calculator'!$J$98),MATCH(B33,INDIRECT("'TFD Calculator'!D14:D"&'TFD Calculator'!$J$98),0),2),"") -> 
D34: =IFERROR(INDEX(INDIRECT("'TFD Calculator'!D14:H"&'TFD Calculator'!$J$98),MATCH(B34,INDIRECT("'TFD Calculator'!D14:D"&'TFD Calculator'!$J$98),0),4),"") ->  | E34: =IFERROR(INDEX(INDIRECT("'TFD Calculator'!D14:H"&'TFD Calculator'!$J$98),MATCH(B34,INDIRECT("'TFD Calculator'!D14:D"&'TFD Calculator'!$J$98),0),5),"") ->  | H34: =IFERROR(INDEX(INDIRECT("'TFD Calculator'!D14:H"&'TFD Calculator'!$J$98),MATCH(B34,INDIRECT("'TFD Calculator'!D14:D"&'TFD Calculator'!$J$98),0),2),"") -> 
D35: =IFERROR(INDEX(INDIRECT("'TFD Calculator'!D14:H"&'TFD Calculator'!$J$98),MATCH(B35,INDIRECT("'TFD Calculator'!D14:D"&'TFD Calculator'!$J$98),0),4),"") ->  | E35: =IFERROR(INDEX(INDIRECT("'TFD Calculator'!D14:H"&'TFD Calculator'!$J$98),MATCH(B35,INDIRECT("'TFD Calculator'!D14:D"&'TFD Calculator'!$J$98),0),5),"") ->  | H35: =IFERROR(INDEX(INDIRECT("'TFD Calculator'!D14:H"&'TFD Calculator'!$J$98),MATCH(B35,INDIRECT("'TFD Calculator'!D14:D"&'TFD Calculator'!$J$98),0),2),"") -> 
D36: =IFERROR(INDEX(INDIRECT("'TFD Calculator'!D14:H"&'TFD Calculator'!$J$98),MATCH(B36,INDIRECT("'TFD Calculator'!D14:D"&'TFD Calculator'!$J$98),0),4),"") ->  | E36: =IFERROR(INDEX(INDIRECT("'TFD Calculator'!D14:H"&'TFD Calculator'!$J$98),MATCH(B36,INDIRECT("'TFD Calculator'!D14:D"&'TFD Calculator'!$J$98),0),5),"") ->  | H36: =IFERROR(INDEX(INDIRECT("'TFD Calculator'!D14:H"&'TFD Calculator'!$J$98),MATCH(B36,INDIRECT("'TFD Calculator'!D14:D"&'TFD Calculator'!$J$98),0),2),"") -> 
D37: =IFERROR(INDEX(INDIRECT("'TFD Calculator'!D14:H"&'TFD Calculator'!$J$98),MATCH(B37,INDIRECT("'TFD Calculator'!D14:D"&'TFD Calculator'!$J$98),0),4),"") ->  | E37: =IFERROR(INDEX(INDIRECT("'TFD Calculator'!D14:H"&'TFD Calculator'!$J$98),MATCH(B37,INDIRECT("'TFD Calculator'!D14:D"&'TFD Calculator'!$J$98),0),5),"") ->  | H37: =IFERROR(INDEX(INDIRECT("'TFD Calculator'!D14:H"&'TFD Calculator'!$J$98),MATCH(B37,INDIRECT("'TFD Calculator'!D14:D"&'TFD Calculator'!$J$98),0),2),"") -> 
D38: =IFERROR(INDEX(INDIRECT("'TFD Calculator'!D14:H"&'TFD Calculator'!$J$98),MATCH(B38,INDIRECT("'TFD Calculator'!D14:D"&'TFD Calculator'!$J$98),0),4),"") ->  | E38: =IFERROR(INDEX(INDIRECT("'TFD Calculator'!D14:H"&'TFD Calculator'!$J$98),MATCH(B38,INDIRECT("'TFD Calculator'!D14:D"&'TFD Calculator'!$J$98),0),5),"") ->  | H38: =IFERROR(INDEX(INDIRECT("'TFD Calculator'!D14:H"&'TFD Calculator'!$J$98),MATCH(B38,INDIRECT("'TFD Calculator'!D14:D"&'TFD Calculator'!$J$98),0),2),"") -> 
D39: =IFERROR(INDEX(INDIRECT("'TFD Calculator'!D14:H"&'TFD Calculator'!$J$98),MATCH(B39,INDIRECT("'TFD Calculator'!D14:D"&'TFD Calculator'!$J$98),0),4),"") ->  | E39: =IFERROR(INDEX(INDIRECT("'TFD Calculator'!D14:H"&'TFD Calculator'!$J$98),MATCH(B39,INDIRECT("'TFD Calculator'!D14:D"&'TFD Calculator'!$J$98),0),5),"") ->  | H39: =IFERROR(INDEX(INDIRECT("'TFD Calculator'!D14:H"&'TFD Calculator'!$J$98),MATCH(B39,INDIRECT("'TFD Calculator'!D14:D"&'TFD Calculator'!$J$98),0),2),"") -> 
D40: =IFERROR(INDEX(INDIRECT("'TFD Calculator'!D14:H"&'TFD Calculator'!$J$98),MATCH(B40,INDIRECT("'TFD Calculator'!D14:D"&'TFD Calculator'!$J$98),0),4),"") ->  | E40: =IFERROR(INDEX(INDIRECT("'TFD Calculator'!D14:H"&'TFD Calculator'!$J$98),MATCH(B40,INDIRECT("'TFD Calculator'!D14:D"&'TFD Calculator'!$J$98),0),5),"") ->  | H40: =IFERROR(INDEX(INDIRECT("'TFD Calculator'!D14:H"&'TFD Calculator'!$J$98),MATCH(B40,INDIRECT("'TFD Calculator'!D14:D"&'TFD Calculator'!$J$98),0),2),"") -> 
D41: =IFERROR(INDEX(INDIRECT("'TFD Calculator'!D14:H"&'TFD Calculator'!$J$98),MATCH(B41,INDIRECT("'TFD Calculator'!D14:D"&'TFD Calculator'!$J$98),0),4),"") ->  | E41: =IFERROR(INDEX(INDIRECT("'TFD Calculator'!D14:H"&'TFD Calculator'!$J$98),MATCH(B41,INDIRECT("'TFD Calculator'!D14:D"&'TFD Calculator'!$J$98),0),5),"") ->  | H41: =IFERROR(INDEX(INDIRECT("'TFD Calculator'!D14:H"&'TFD Calculator'!$J$98),MATCH(B41,INDIRECT("'TFD Calculator'!D14:D"&'TFD Calculator'!$J$98),0),2),"") -> 
D42: =IFERROR(INDEX(INDIRECT("'TFD Calculator'!D14:H"&'TFD Calculator'!$J$98),MATCH(B42,INDIRECT("'TFD Calculator'!D14:D"&'TFD Calculator'!$J$98),0),4),"") ->  | E42: =IFERROR(INDEX(INDIRECT("'TFD Calculator'!D14:H"&'TFD Calculator'!$J$98),MATCH(B42,INDIRECT("'TFD Calculator'!D14:D"&'TFD Calculator'!$J$98),0),5),"") ->  | H42: =IFERROR(INDEX(INDIRECT("'TFD Calculator'!D14:H"&'TFD Calculator'!$J$98),MATCH(B42,INDIRECT("'TFD Calculator'!D14:D"&'TFD Calculator'!$J$98),0),2),"") -> 
D43: =IFERROR(INDEX(INDIRECT("'TFD Calculator'!D14:H"&'TFD Calculator'!$J$98),MATCH(B43,INDIRECT("'TFD Calculator'!D14:D"&'TFD Calculator'!$J$98),0),4),"") ->  | E43: =IFERROR(INDEX(INDIRECT("'TFD Calculator'!D14:H"&'TFD Calculator'!$J$98),MATCH(B43,INDIRECT("'TFD Calculator'!D14:D"&'TFD Calculator'!$J$98),0),5),"") ->  | H43: =IFERROR(INDEX(INDIRECT("'TFD Calculator'!D14:H"&'TFD Calculator'!$J$98),MATCH(B43,INDIRECT("'TFD Calculator'!D14:D"&'TFD Calculator'!$J$98),0),2),"") -> 
D44: =IFERROR(INDEX(INDIRECT("'TFD Calculator'!D14:H"&'TFD Calculator'!$J$98),MATCH(B44,INDIRECT("'TFD Calculator'!D14:D"&'TFD Calculator'!$J$98),0),4),"") ->  | E44: =IFERROR(INDEX(INDIRECT("'TFD Calculator'!D14:H"&'TFD Calculator'!$J$98),MATCH(B44,INDIRECT("'TFD Calculator'!D14:D"&'TFD Calculator'!$J$98),0),5),"") ->  | H44: =IFERROR(INDEX(INDIRECT("'TFD Calculator'!D14:H"&'TFD Calculator'!$J$98),MATCH(B44,INDIRECT("'TFD Calculator'!D14:D"&'TFD Calculator'!$J$98),0),2),"") -> 
D45: =IFERROR(INDEX(INDIRECT("'TFD Calculator'!D14:H"&'TFD Calculator'!$J$98),MATCH(B45,INDIRECT("'TFD Calculator'!D14:D"&'TFD Calculator'!$J$98),0),4),"") ->  | E45: =IFERROR(INDEX(INDIRECT("'TFD Calculator'!D14:H"&'TFD Calculator'!$J$98),MATCH(B45,INDIRECT("'TFD Calculator'!D14:D"&'TFD Calculator'!$J$98),0),5),"") ->  | H45: =IFERROR(INDEX(INDIRECT("'TFD Calculator'!D14:H"&'TFD Calculator'!$J$98),MATCH(B45,INDIRECT("'TFD Calculator'!D14:D"&'TFD Calculator'!$J$98),0),2),"") -> 
D46: =IFERROR(INDEX(INDIRECT("'TFD Calculator'!D14:H"&'TFD Calculator'!$J$98),MATCH(B46,INDIRECT("'TFD Calculator'!D14:D"&'TFD Calculator'!$J$98),0),4),"") ->  | E46: =IFERROR(INDEX(INDIRECT("'TFD Calculator'!D14:H"&'TFD Calculator'!$J$98),MATCH(B46,INDIRECT("'TFD Calculator'!D14:D"&'TFD Calculator'!$J$98),0),5),"") ->  | H46: =IFERROR(INDEX(INDIRECT("'TFD Calculator'!D14:H"&'TFD Calculator'!$J$98),MATCH(B46,INDIRECT("'TFD Calculator'!D14:D"&'TFD Calculator'!$J$98),0),2),"") -> 
D47: =IFERROR(INDEX(INDIRECT("'TFD Calculator'!D14:H"&'TFD Calculator'!$J$98),MATCH(B47,INDIRECT("'TFD Calculator'!D14:D"&'TFD Calculator'!$J$98),0),4),"") ->  | E47: =IFERROR(INDEX(INDIRECT("'TFD Calculator'!D14:H"&'TFD Calculator'!$J$98),MATCH(B47,INDIRECT("'TFD Calculator'!D14:D"&'TFD Calculator'!$J$98),0),5),"") ->  | H47: =IFERROR(INDEX(INDIRECT("'TFD Calculator'!D14:H"&'TFD Calculator'!$J$98),MATCH(B47,INDIRECT("'TFD Calculator'!D14:D"&'TFD Calculator'!$J$98),0),2),"") -> 
D48: =IFERROR(INDEX(INDIRECT("'TFD Calculator'!D14:H"&'TFD Calculator'!$J$98),MATCH(B48,INDIRECT("'TFD Calculator'!D14:D"&'TFD Calculator'!$J$98),0),4),"") ->  | E48: =IFERROR(INDEX(INDIRECT("'TFD Calculator'!D14:H"&'TFD Calculator'!$J$98),MATCH(B48,INDIRECT("'TFD Calculator'!D14:D"&'TFD Calculator'!$J$98),0),5),"") ->  | H48: =IFERROR(INDEX(INDIRECT("'TFD Calculator'!D14:H"&'TFD Calculator'!$J$98),MATCH(B48,INDIRECT("'TFD Calculator'!D14:D"&'TFD Calculator'!$J$98),0),2),"") -> 
D49: =IFERROR(INDEX(INDIRECT("'TFD Calculator'!D14:H"&'TFD Calculator'!$J$98),MATCH(B49,INDIRECT("'TFD Calculator'!D14:D"&'TFD Calculator'!$J$98),0),4),"") ->  | E49: =IFERROR(INDEX(INDIRECT("'TFD Calculator'!D14:H"&'TFD Calculator'!$J$98),MATCH(B49,INDIRECT("'TFD Calculator'!D14:D"&'TFD Calculator'!$J$98),0),5),"") ->  | H49: =IFERROR(INDEX(INDIRECT("'TFD Calculator'!D14:H"&'TFD Calculator'!$J$98),MATCH(B49,INDIRECT("'TFD Calculator'!D14:D"&'TFD Calculator'!$J$98),0),2),"") -> 
D50: =IFERROR(INDEX(INDIRECT("'TFD Calculator'!D14:H"&'TFD Calculator'!$J$98),MATCH(B50,INDIRECT("'TFD Calculator'!D14:D"&'TFD Calculator'!$J$98),0),4),"") ->  | E50: =IFERROR(INDEX(INDIRECT("'TFD Calculator'!D14:H"&'TFD Calculator'!$J$98),MATCH(B50,INDIRECT("'TFD Calculator'!D14:D"&'TFD Calculator'!$J$98),0),5),"") ->  | H50: =IFERROR(INDEX(INDIRECT("'TFD Calculator'!D14:H"&'TFD Calculator'!$J$98),MATCH(B50,INDIRECT("'TFD Calculator'!D14:D"&'TFD Calculator'!$J$98),0),2),"") -> 
D51: =IFERROR(INDEX(INDIRECT("'TFD Calculator'!D14:H"&'TFD Calculator'!$J$98),MATCH(B51,INDIRECT("'TFD Calculator'!D14:D"&'TFD Calculator'!$J$98),0),4),"") ->  | E51: =IFERROR(INDEX(INDIRECT("'TFD Calculator'!D14:H"&'TFD Calculator'!$J$98),MATCH(B51,INDIRECT("'TFD Calculator'!D14:D"&'TFD Calculator'!$J$98),0),5),"") ->  | H51: =IFERROR(INDEX(INDIRECT("'TFD Calculator'!D14:H"&'TFD Calculator'!$J$98),MATCH(B51,INDIRECT("'TFD Calculator'!D14:D"&'TFD Calculator'!$J$98),0),2),"") -> 
D52: =IFERROR(INDEX(INDIRECT("'TFD Calculator'!D14:H"&'TFD Calculator'!$J$98),MATCH(B52,INDIRECT("'TFD Calculator'!D14:D"&'TFD Calculator'!$J$98),0),4),"") ->  | E52: =IFERROR(INDEX(INDIRECT("'TFD Calculator'!D14:H"&'TFD Calculator'!$J$98),MATCH(B52,INDIRECT("'TFD Calculator'!D14:D"&'TFD Calculator'!$J$98),0),5),"") ->  | H52: =IFERROR(INDEX(INDIRECT("'TFD Calculator'!D14:H"&'TFD Calculator'!$J$98),MATCH(B52,INDIRECT("'TFD Calculator'!D14:D"&'TFD Calculator'!$J$98),0),2),"") -> 
D53: =IFERROR(INDEX(INDIRECT("'TFD Calculator'!D14:H"&'TFD Calculator'!$J$98),MATCH(B53,INDIRECT("'TFD Calculator'!D14:D"&'TFD Calculator'!$J$98),0),4),"") ->  | E53: =IFERROR(INDEX(INDIRECT("'TFD Calculator'!D14:H"&'TFD Calculator'!$J$98),MATCH(B53,INDIRECT("'TFD Calculator'!D14:D"&'TFD Calculator'!$J$98),0),5),"") ->  | H53: =IFERROR(INDEX(INDIRECT("'TFD Calculator'!D14:H"&'TFD Calculator'!$J$98),MATCH(B53,INDIRECT("'TFD Calculator'!D14:D"&'TFD Calculator'!$J$98),0),2),"") -> 
D54: =IFERROR(INDEX(INDIRECT("'TFD Calculator'!D14:H"&'TFD Calculator'!$J$98),MATCH(B54,INDIRECT("'TFD Calculator'!D14:D"&'TFD Calculator'!$J$98),0),4),"") ->  | E54: =IFERROR(INDEX(INDIRECT("'TFD Calculator'!D14:H"&'TFD Calculator'!$J$98),MATCH(B54,INDIRECT("'TFD Calculator'!D14:D"&'TFD Calculator'!$J$98),0),5),"") ->  | H54: =IFERROR(INDEX(INDIRECT("'TFD Calculator'!D14:H"&'TFD Calculator'!$J$98),MATCH(B54,INDIRECT("'TFD Calculator'!D14:D"&'TFD Calculator'!$J$98),0),2),"") -> 
D55: =IFERROR(INDEX(INDIRECT("'TFD Calculator'!D14:H"&'TFD Calculator'!$J$98),MATCH(B55,INDIRECT("'TFD Calculator'!D14:D"&'TFD Calculator'!$J$98),0),4),"") ->  | E55: =IFERROR(INDEX(INDIRECT("'TFD Calculator'!D14:H"&'TFD Calculator'!$J$98),MATCH(B55,INDIRECT("'TFD Calculator'!D14:D"&'TFD Calculator'!$J$98),0),5),"") ->  | H55: =IFERROR(INDEX(INDIRECT("'TFD Calculator'!D14:H"&'TFD Calculator'!$J$98),MATCH(B55,INDIRECT("'TFD Calculator'!D14:D"&'TFD Calculator'!$J$98),0),2),"") -> 
D56: =IFERROR(INDEX(INDIRECT("'TFD Calculator'!D14:H"&'TFD Calculator'!$J$98),MATCH(B56,INDIRECT("'TFD Calculator'!D14:D"&'TFD Calculator'!$J$98),0),4),"") ->  | E56: =IFERROR(INDEX(INDIRECT("'TFD Calculator'!D14:H"&'TFD Calculator'!$J$98),MATCH(B56,INDIRECT("'TFD Calculator'!D14:D"&'TFD Calculator'!$J$98),0),5),"") ->  | H56: =IFERROR(INDEX(INDIRECT("'TFD Calculator'!D14:H"&'TFD Calculator'!$J$98),MATCH(B56,INDIRECT("'TFD Calculator'!D14:D"&'TFD Calculator'!$J$98),0),2),"") -> 
D57: =IFERROR(INDEX(INDIRECT("'TFD Calculator'!D14:H"&'TFD Calculator'!$J$98),MATCH(B57,INDIRECT("'TFD Calculator'!D14:D"&'TFD Calculator'!$J$98),0),4),"") ->  | E57: =IFERROR(INDEX(INDIRECT("'TFD Calculator'!D14:H"&'TFD Calculator'!$J$98),MATCH(B57,INDIRECT("'TFD Calculator'!D14:D"&'TFD Calculator'!$J$98),0),5),"") ->  | H57: =IFERROR(INDEX(INDIRECT("'TFD Calculator'!D14:H"&'TFD Calculator'!$J$98),MATCH(B57,INDIRECT("'TFD Calculator'!D14:D"&'TFD Calculator'!$J$98),0),2),"") -> 
C58: =IFERROR(IF(MOD(20-H58,D58)=0,"Year "&MOD(20-H58,D58)+20+D58,"Year "&20-MOD(20-H58,D58)+D58),"") ->  | D58: =IFERROR(INDEX(INDIRECT("'TFD Calculator'!D14:H"&'TFD Calculator'!$J$98),MATCH(B58,INDIRECT("'TFD Calculator'!D14:D"&'TFD Calculator'!$J$98),0),4),"") ->  | E58: =IFERROR(INDEX(INDIRECT("'TFD Calculator'!D14:H"&'TFD Calculator'!$J$98),MATCH(B58,INDIRECT("'TFD Calculator'!D14:D"&'TFD Calculator'!$J$98),0),5),"") ->  | H58: =IFERROR(INDEX(INDIRECT("'TFD Calculator'!D14:H"&'TFD Calculator'!$J$98),MATCH(B58,INDIRECT("'TFD Calculator'!D14:D"&'TFD Calculator'!$J$98),0),2),"") -> 
D59: =IFERROR(INDEX(INDIRECT("'TFD Calculator'!D14:H"&'TFD Calculator'!$J$98),MATCH(B59,INDIRECT("'TFD Calculator'!D14:D"&'TFD Calculator'!$J$98),0),4),"") ->  | E59: =IFERROR(INDEX(INDIRECT("'TFD Calculator'!D14:H"&'TFD Calculator'!$J$98),MATCH(B59,INDIRECT("'TFD Calculator'!D14:D"&'TFD Calculator'!$J$98),0),5),"") ->  | H59: =IFERROR(INDEX(INDIRECT("'TFD Calculator'!D14:H"&'TFD Calculator'!$J$98),MATCH(B59,INDIRECT("'TFD Calculator'!D14:D"&'TFD Calculator'!$J$98),0),2),"") -> 
D60: =IFERROR(INDEX(INDIRECT("'TFD Calculator'!D14:H"&'TFD Calculator'!$J$98),MATCH(B60,INDIRECT("'TFD Calculator'!D14:D"&'TFD Calculator'!$J$98),0),4),"") ->  | E60: =IFERROR(INDEX(INDIRECT("'TFD Calculator'!D14:H"&'TFD Calculator'!$J$98),MATCH(B60,INDIRECT("'TFD Calculator'!D14:D"&'TFD Calculator'!$J$98),0),5),"") ->  | H60: =IFERROR(INDEX(INDIRECT("'TFD Calculator'!D14:H"&'TFD Calculator'!$J$98),MATCH(B60,INDIRECT("'TFD Calculator'!D14:D"&'TFD Calculator'!$J$98),0),2),"") -> 
D61: =IFERROR(INDEX(INDIRECT("'TFD Calculator'!D14:H"&'TFD Calculator'!$J$98),MATCH(B61,INDIRECT("'TFD Calculator'!D14:D"&'TFD Calculator'!$J$98),0),4),"") ->  | E61: =IFERROR(INDEX(INDIRECT("'TFD Calculator'!D14:H"&'TFD Calculator'!$J$98),MATCH(B61,INDIRECT("'TFD Calculator'!D14:D"&'TFD Calculator'!$J$98),0),5),"") ->  | H61: =IFERROR(INDEX(INDIRECT("'TFD Calculator'!D14:H"&'TFD Calculator'!$J$98),MATCH(B61,INDIRECT("'TFD Calculator'!D14:D"&'TFD Calculator'!$J$98),0),2),"") -> 
D62: =IFERROR(INDEX(INDIRECT("'TFD Calculator'!D14:H"&'TFD Calculator'!$J$98),MATCH(B62,INDIRECT("'TFD Calculator'!D14:D"&'TFD Calculator'!$J$98),0),4),"") ->  | E62: =IFERROR(INDEX(INDIRECT("'TFD Calculator'!D14:H"&'TFD Calculator'!$J$98),MATCH(B62,INDIRECT("'TFD Calculator'!D14:D"&'TFD Calculator'!$J$98),0),5),"") ->  | H62: =IFERROR(INDEX(INDIRECT("'TFD Calculator'!D14:H"&'TFD Calculator'!$J$98),MATCH(B62,INDIRECT("'TFD Calculator'!D14:D"&'TFD Calculator'!$J$98),0),2),"") -> 
D63: =IFERROR(INDEX(INDIRECT("'TFD Calculator'!D14:H"&'TFD Calculator'!$J$98),MATCH(B63,INDIRECT("'TFD Calculator'!D14:D"&'TFD Calculator'!$J$98),0),4),"") ->  | E63: =IFERROR(INDEX(INDIRECT("'TFD Calculator'!D14:H"&'TFD Calculator'!$J$98),MATCH(B63,INDIRECT("'TFD Calculator'!D14:D"&'TFD Calculator'!$J$98),0),5),"") ->  | H63: =IFERROR(INDEX(INDIRECT("'TFD Calculator'!D14:H"&'TFD Calculator'!$J$98),MATCH(B63,INDIRECT("'TFD Calculator'!D14:D"&'TFD Calculator'!$J$98),0),2),"") -> 
D64: =IFERROR(INDEX(INDIRECT("'TFD Calculator'!D14:H"&'TFD Calculator'!$J$98),MATCH(B64,INDIRECT("'TFD Calculator'!D14:D"&'TFD Calculator'!$J$98),0),4),"") ->  | E64: =IFERROR(INDEX(INDIRECT("'TFD Calculator'!D14:H"&'TFD Calculator'!$J$98),MATCH(B64,INDIRECT("'TFD Calculator'!D14:D"&'TFD Calculator'!$J$98),0),5),"") ->  | H64: =IFERROR(INDEX(INDIRECT("'TFD Calculator'!D14:H"&'TFD Calculator'!$J$98),MATCH(B64,INDIRECT("'TFD Calculator'!D14:D"&'TFD Calculator'!$J$98),0),2),"") -> 
D65: =IFERROR(INDEX(INDIRECT("'TFD Calculator'!D14:H"&'TFD Calculator'!$J$98),MATCH(B65,INDIRECT("'TFD Calculator'!D14:D"&'TFD Calculator'!$J$98),0),4),"") ->  | E65: =IFERROR(INDEX(INDIRECT("'TFD Calculator'!D14:H"&'TFD Calculator'!$J$98),MATCH(B65,INDIRECT("'TFD Calculator'!D14:D"&'TFD Calculator'!$J$98),0),5),"") ->  | H65: =IFERROR(INDEX(INDIRECT("'TFD Calculator'!D14:H"&'TFD Calculator'!$J$98),MATCH(B65,INDIRECT("'TFD Calculator'!D14:D"&'TFD Calculator'!$J$98),0),2),"") -> 
D66: =IFERROR(INDEX(INDIRECT("'TFD Calculator'!D14:H"&'TFD Calculator'!$J$98),MATCH(B66,INDIRECT("'TFD Calculator'!D14:D"&'TFD Calculator'!$J$98),0),4),"") ->  | E66: =IFERROR(INDEX(INDIRECT("'TFD Calculator'!D14:H"&'TFD Calculator'!$J$98),MATCH(B66,INDIRECT("'TFD Calculator'!D14:D"&'TFD Calculator'!$J$98),0),5),"") ->  | H66: =IFERROR(INDEX(INDIRECT("'TFD Calculator'!D14:H"&'TFD Calculator'!$J$98),MATCH(B66,INDIRECT("'TFD Calculator'!D14:D"&'TFD Calculator'!$J$98),0),2),"") -> 
D67: =IFERROR(INDEX(INDIRECT("'TFD Calculator'!D14:H"&'TFD Calculator'!$J$98),MATCH(B67,INDIRECT("'TFD Calculator'!D14:D"&'TFD Calculator'!$J$98),0),4),"") ->  | E67: =IFERROR(INDEX(INDIRECT("'TFD Calculator'!D14:H"&'TFD Calculator'!$J$98),MATCH(B67,INDIRECT("'TFD Calculator'!D14:D"&'TFD Calculator'!$J$98),0),5),"") ->  | H67: =IFERROR(INDEX(INDIRECT("'TFD Calculator'!D14:H"&'TFD Calculator'!$J$98),MATCH(B67,INDIRECT("'TFD Calculator'!D14:D"&'TFD Calculator'!$J$98),0),2),"") -> 
D68: =IFERROR(INDEX(INDIRECT("'TFD Calculator'!D14:H"&'TFD Calculator'!$J$98),MATCH(B68,INDIRECT("'TFD Calculator'!D14:D"&'TFD Calculator'!$J$98),0),4),"") ->  | E68: =IFERROR(INDEX(INDIRECT("'TFD Calculator'!D14:H"&'TFD Calculator'!$J$98),MATCH(B68,INDIRECT("'TFD Calculator'!D14:D"&'TFD Calculator'!$J$98),0),5),"") ->  | H68: =IFERROR(INDEX(INDIRECT("'TFD Calculator'!D14:H"&'TFD Calculator'!$J$98),MATCH(B68,INDIRECT("'TFD Calculator'!D14:D"&'TFD Calculator'!$J$98),0),2),"") -> 
D69: =IFERROR(INDEX(INDIRECT("'TFD Calculator'!D14:H"&'TFD Calculator'!$J$98),MATCH(B69,INDIRECT("'TFD Calculator'!D14:D"&'TFD Calculator'!$J$98),0),4),"") ->  | E69: =IFERROR(INDEX(INDIRECT("'TFD Calculator'!D14:H"&'TFD Calculator'!$J$98),MATCH(B69,INDIRECT("'TFD Calculator'!D14:D"&'TFD Calculator'!$J$98),0),5),"") ->  | H69: =IFERROR(INDEX(INDIRECT("'TFD Calculator'!D14:H"&'TFD Calculator'!$J$98),MATCH(B69,INDIRECT("'TFD Calculator'!D14:D"&'TFD Calculator'!$J$98),0),2),"") -> 
D70: =IFERROR(INDEX(INDIRECT("'TFD Calculator'!D14:H"&'TFD Calculator'!$J$98),MATCH(B70,INDIRECT("'TFD Calculator'!D14:D"&'TFD Calculator'!$J$98),0),4),"") ->  | E70: =IFERROR(INDEX(INDIRECT("'TFD Calculator'!D14:H"&'TFD Calculator'!$J$98),MATCH(B70,INDIRECT("'TFD Calculator'!D14:D"&'TFD Calculator'!$J$98),0),5),"") ->  | H70: =IFERROR(INDEX(INDIRECT("'TFD Calculator'!D14:H"&'TFD Calculator'!$J$98),MATCH(B70,INDIRECT("'TFD Calculator'!D14:D"&'TFD Calculator'!$J$98),0),2),"") -> 
D71: =IFERROR(INDEX(INDIRECT("'TFD Calculator'!D14:H"&'TFD Calculator'!$J$98),MATCH(B71,INDIRECT("'TFD Calculator'!D14:D"&'TFD Calculator'!$J$98),0),4),"") ->  | E71: =IFERROR(INDEX(INDIRECT("'TFD Calculator'!D14:H"&'TFD Calculator'!$J$98),MATCH(B71,INDIRECT("'TFD Calculator'!D14:D"&'TFD Calculator'!$J$98),0),5),"") ->  | H71: =IFERROR(INDEX(INDIRECT("'TFD Calculator'!D14:H"&'TFD Calculator'!$J$98),MATCH(B71,INDIRECT("'TFD Calculator'!D14:D"&'TFD Calculator'!$J$98),0),2),"") -> 
D72: =IFERROR(INDEX(INDIRECT("'TFD Calculator'!D14:H"&'TFD Calculator'!$J$98),MATCH(B72,INDIRECT("'TFD Calculator'!D14:D"&'TFD Calculator'!$J$98),0),4),"") ->  | E72: =IFERROR(INDEX(INDIRECT("'TFD Calculator'!D14:H"&'TFD Calculator'!$J$98),MATCH(B72,INDIRECT("'TFD Calculator'!D14:D"&'TFD Calculator'!$J$98),0),5),"") ->  | H72: =IFERROR(INDEX(INDIRECT("'TFD Calculator'!D14:H"&'TFD Calculator'!$J$98),MATCH(B72,INDIRECT("'TFD Calculator'!D14:D"&'TFD Calculator'!$J$98),0),2),"") -> 
D73: =IFERROR(INDEX(INDIRECT("'TFD Calculator'!D14:H"&'TFD Calculator'!$J$98),MATCH(B73,INDIRECT("'TFD Calculator'!D14:D"&'TFD Calculator'!$J$98),0),4),"") ->  | E73: =IFERROR(INDEX(INDIRECT("'TFD Calculator'!D14:H"&'TFD Calculator'!$J$98),MATCH(B73,INDIRECT("'TFD Calculator'!D14:D"&'TFD Calculator'!$J$98),0),5),"") ->  | H73: =IFERROR(INDEX(INDIRECT("'TFD Calculator'!D14:H"&'TFD Calculator'!$J$98),MATCH(B73,INDIRECT("'TFD Calculator'!D14:D"&'TFD Calculator'!$J$98),0),2),"") -> 
D74: =IFERROR(INDEX(INDIRECT("'TFD Calculator'!D14:H"&'TFD Calculator'!$J$98),MATCH(B74,INDIRECT("'TFD Calculator'!D14:D"&'TFD Calculator'!$J$98),0),4),"") ->  | E74: =IFERROR(INDEX(INDIRECT("'TFD Calculator'!D14:H"&'TFD Calculator'!$J$98),MATCH(B74,INDIRECT("'TFD Calculator'!D14:D"&'TFD Calculator'!$J$98),0),5),"") ->  | H74: =IFERROR(INDEX(INDIRECT("'TFD Calculator'!D14:H"&'TFD Calculator'!$J$98),MATCH(B74,INDIRECT("'TFD Calculator'!D14:D"&'TFD Calculator'!$J$98),0),2),"") -> 
D75: =IFERROR(INDEX(INDIRECT("'TFD Calculator'!D14:H"&'TFD Calculator'!$J$98),MATCH(B75,INDIRECT("'TFD Calculator'!D14:D"&'TFD Calculator'!$J$98),0),4),"") ->  | E75: =IFERROR(INDEX(INDIRECT("'TFD Calculator'!D14:H"&'TFD Calculator'!$J$98),MATCH(B75,INDIRECT("'TFD Calculator'!D14:D"&'TFD Calculator'!$J$98),0),5),"") ->  | H75: =IFERROR(INDEX(INDIRECT("'TFD Calculator'!D14:H"&'TFD Calculator'!$J$98),MATCH(B75,INDIRECT("'TFD Calculator'!D14:D"&'TFD Calculator'!$J$98),0),2),"") -> 
D76: =IFERROR(INDEX(INDIRECT("'TFD Calculator'!D14:H"&'TFD Calculator'!$J$98),MATCH(B76,INDIRECT("'TFD Calculator'!D14:D"&'TFD Calculator'!$J$98),0),4),"") ->  | E76: =IFERROR(INDEX(INDIRECT("'TFD Calculator'!D14:H"&'TFD Calculator'!$J$98),MATCH(B76,INDIRECT("'TFD Calculator'!D14:D"&'TFD Calculator'!$J$98),0),5),"") ->  | H76: =IFERROR(INDEX(INDIRECT("'TFD Calculator'!D14:H"&'TFD Calculator'!$J$98),MATCH(B76,INDIRECT("'TFD Calculator'!D14:D"&'TFD Calculator'!$J$98),0),2),"") -> 
D77: =IFERROR(INDEX(INDIRECT("'TFD Calculator'!D14:H"&'TFD Calculator'!$J$98),MATCH(B77,INDIRECT("'TFD Calculator'!D14:D"&'TFD Calculator'!$J$98),0),4),"") ->  | E77: =IFERROR(INDEX(INDIRECT("'TFD Calculator'!D14:H"&'TFD Calculator'!$J$98),MATCH(B77,INDIRECT("'TFD Calculator'!D14:D"&'TFD Calculator'!$J$98),0),5),"") ->  | H77: =IFERROR(INDEX(INDIRECT("'TFD Calculator'!D14:H"&'TFD Calculator'!$J$98),MATCH(B77,INDIRECT("'TFD Calculator'!D14:D"&'TFD Calculator'!$J$98),0),2),"") -> 
D78: =IFERROR(INDEX(INDIRECT("'TFD Calculator'!D14:H"&'TFD Calculator'!$J$98),MATCH(B78,INDIRECT("'TFD Calculator'!D14:D"&'TFD Calculator'!$J$98),0),4),"") ->  | E78: =IFERROR(INDEX(INDIRECT("'TFD Calculator'!D14:H"&'TFD Calculator'!$J$98),MATCH(B78,INDIRECT("'TFD Calculator'!D14:D"&'TFD Calculator'!$J$98),0),5),"") ->  | H78: =IFERROR(INDEX(INDIRECT("'TFD Calculator'!D14:H"&'TFD Calculator'!$J$98),MATCH(B78,INDIRECT("'TFD Calculator'!D14:D"&'TFD Calculator'!$J$98),0),2),"") -> 
D79: =IFERROR(INDEX(INDIRECT("'TFD Calculator'!D14:H"&'TFD Calculator'!$J$98),MATCH(B79,INDIRECT("'TFD Calculator'!D14:D"&'TFD Calculator'!$J$98),0),4),"") ->  | E79: =IFERROR(INDEX(INDIRECT("'TFD Calculator'!D14:H"&'TFD Calculator'!$J$98),MATCH(B79,INDIRECT("'TFD Calculator'!D14:D"&'TFD Calculator'!$J$98),0),5),"") ->  | H79: =IFERROR(INDEX(INDIRECT("'TFD Calculator'!D14:H"&'TFD Calculator'!$J$98),MATCH(B79,INDIRECT("'TFD Calculator'!D14:D"&'TFD Calculator'!$J$98),0),2),"") -> 
D80: =IFERROR(INDEX(INDIRECT("'TFD Calculator'!D14:H"&'TFD Calculator'!$J$98),MATCH(B80,INDIRECT("'TFD Calculator'!D14:D"&'TFD Calculator'!$J$98),0),4),"") ->  | E80: =IFERROR(INDEX(INDIRECT("'TFD Calculator'!D14:H"&'TFD Calculator'!$J$98),MATCH(B80,INDIRECT("'TFD Calculator'!D14:D"&'TFD Calculator'!$J$98),0),5),"") ->  | H80: =IFERROR(INDEX(INDIRECT("'TFD Calculator'!D14:H"&'TFD Calculator'!$J$98),MATCH(B80,INDIRECT("'TFD Calculator'!D14:D"&'TFD Calculator'!$J$98),0),2),"") -> 
D81: =IFERROR(INDEX(INDIRECT("'TFD Calculator'!D14:H"&'TFD Calculator'!$J$98),MATCH(B81,INDIRECT("'TFD Calculator'!D14:D"&'TFD Calculator'!$J$98),0),4),"") ->  | E81: =IFERROR(INDEX(INDIRECT("'TFD Calculator'!D14:H"&'TFD Calculator'!$J$98),MATCH(B81,INDIRECT("'TFD Calculator'!D14:D"&'TFD Calculator'!$J$98),0),5),"") ->  | H81: =IFERROR(INDEX(INDIRECT("'TFD Calculator'!D14:H"&'TFD Calculator'!$J$98),MATCH(B81,INDIRECT("'TFD Calculator'!D14:D"&'TFD Calculator'!$J$98),0),2),"") -> 
D82: =IFERROR(INDEX(INDIRECT("'TFD Calculator'!D14:H"&'TFD Calculator'!$J$98),MATCH(B82,INDIRECT("'TFD Calculator'!D14:D"&'TFD Calculator'!$J$98),0),4),"") ->  | E82: =IFERROR(INDEX(INDIRECT("'TFD Calculator'!D14:H"&'TFD Calculator'!$J$98),MATCH(B82,INDIRECT("'TFD Calculator'!D14:D"&'TFD Calculator'!$J$98),0),5),"") ->  | H82: =IFERROR(INDEX(INDIRECT("'TFD Calculator'!D14:H"&'TFD Calculator'!$J$98),MATCH(B82,INDIRECT("'TFD Calculator'!D14:D"&'TFD Calculator'!$J$98),0),2),"") -> 
D83: =IFERROR(INDEX(INDIRECT("'TFD Calculator'!D14:H"&'TFD Calculator'!$J$98),MATCH(B83,INDIRECT("'TFD Calculator'!D14:D"&'TFD Calculator'!$J$98),0),4),"") ->  | E83: =IFERROR(INDEX(INDIRECT("'TFD Calculator'!D14:H"&'TFD Calculator'!$J$98),MATCH(B83,INDIRECT("'TFD Calculator'!D14:D"&'TFD Calculator'!$J$98),0),5),"") ->  | H83: =IFERROR(INDEX(INDIRECT("'TFD Calculator'!D14:H"&'TFD Calculator'!$J$98),MATCH(B83,INDIRECT("'TFD Calculator'!D14:D"&'TFD Calculator'!$J$98),0),2),"") -> 
D84: =IFERROR(INDEX(INDIRECT("'TFD Calculator'!D14:H"&'TFD Calculator'!$J$98),MATCH(B84,INDIRECT("'TFD Calculator'!D14:D"&'TFD Calculator'!$J$98),0),4),"") ->  | E84: =IFERROR(INDEX(INDIRECT("'TFD Calculator'!D14:H"&'TFD Calculator'!$J$98),MATCH(B84,INDIRECT("'TFD Calculator'!D14:D"&'TFD Calculator'!$J$98),0),5),"") ->  | H84: =IFERROR(INDEX(INDIRECT("'TFD Calculator'!D14:H"&'TFD Calculator'!$J$98),MATCH(B84,INDIRECT("'TFD Calculator'!D14:D"&'TFD Calculator'!$J$98),0),2),"") -> 
D85: =IFERROR(INDEX(INDIRECT("'TFD Calculator'!D14:H"&'TFD Calculator'!$J$98),MATCH(B85,INDIRECT("'TFD Calculator'!D14:D"&'TFD Calculator'!$J$98),0),4),"") ->  | E85: =IFERROR(INDEX(INDIRECT("'TFD Calculator'!D14:H"&'TFD Calculator'!$J$98),MATCH(B85,INDIRECT("'TFD Calculator'!D14:D"&'TFD Calculator'!$J$98),0),5),"") ->  | H85: =IFERROR(INDEX(INDIRECT("'TFD Calculator'!D14:H"&'TFD Calculator'!$J$98),MATCH(B85,INDIRECT("'TFD Calculator'!D14:D"&'TFD Calculator'!$J$98),0),2),"") -> 
D86: =IFERROR(INDEX(INDIRECT("'TFD Calculator'!D14:H"&'TFD Calculator'!$J$98),MATCH(B86,INDIRECT("'TFD Calculator'!D14:D"&'TFD Calculator'!$J$98),0),4),"") ->  | E86: =IFERROR(INDEX(INDIRECT("'TFD Calculator'!D14:H"&'TFD Calculator'!$J$98),MATCH(B86,INDIRECT("'TFD Calculator'!D14:D"&'TFD Calculator'!$J$98),0),5),"") ->  | H86: =IFERROR(INDEX(INDIRECT("'TFD Calculator'!D14:H"&'TFD Calculator'!$J$98),MATCH(B86,INDIRECT("'TFD Calculator'!D14:D"&'TFD Calculator'!$J$98),0),2),"") -> 
D87: =IFERROR(INDEX(INDIRECT("'TFD Calculator'!D14:H"&'TFD Calculator'!$J$98),MATCH(B87,INDIRECT("'TFD Calculator'!D14:D"&'TFD Calculator'!$J$98),0),4),"") ->  | E87: =IFERROR(INDEX(INDIRECT("'TFD Calculator'!D14:H"&'TFD Calculator'!$J$98),MATCH(B87,INDIRECT("'TFD Calculator'!D14:D"&'TFD Calculator'!$J$98),0),5),"") ->  | H87: =IFERROR(INDEX(INDIRECT("'TFD Calculator'!D14:H"&'TFD Calculator'!$J$98),MATCH(B87,INDIRECT("'TFD Calculator'!D14:D"&'TFD Calculator'!$J$98),0),2),"") -> 
D88: =IFERROR(INDEX(INDIRECT("'TFD Calculator'!D14:H"&'TFD Calculator'!$J$98),MATCH(B88,INDIRECT("'TFD Calculator'!D14:D"&'TFD Calculator'!$J$98),0),4),"") ->  | E88: =IFERROR(INDEX(INDIRECT("'TFD Calculator'!D14:H"&'TFD Calculator'!$J$98),MATCH(B88,INDIRECT("'TFD Calculator'!D14:D"&'TFD Calculator'!$J$98),0),5),"") ->  | H88: =IFERROR(INDEX(INDIRECT("'TFD Calculator'!D14:H"&'TFD Calculator'!$J$98),MATCH(B88,INDIRECT("'TFD Calculator'!D14:D"&'TFD Calculator'!$J$98),0),2),"") -> 
D89: =IFERROR(INDEX(INDIRECT("'TFD Calculator'!D14:H"&'TFD Calculator'!$J$98),MATCH(B89,INDIRECT("'TFD Calculator'!D14:D"&'TFD Calculator'!$J$98),0),4),"") ->  | E89: =IFERROR(INDEX(INDIRECT("'TFD Calculator'!D14:H"&'TFD Calculator'!$J$98),MATCH(B89,INDIRECT("'TFD Calculator'!D14:D"&'TFD Calculator'!$J$98),0),5),"") ->  | H89: =IFERROR(INDEX(INDIRECT("'TFD Calculator'!D14:H"&'TFD Calculator'!$J$98),MATCH(B89,INDIRECT("'TFD Calculator'!D14:D"&'TFD Calculator'!$J$98),0),2),"") -> 
C90: =IFERROR(IF(MOD(20-H90,D90)=0,"Year "&MOD(20-H90,D90)+20+D90,"Year "&20-MOD(20-H90,D90)+D90),"") ->  | D90: =IFERROR(INDEX(INDIRECT("'TFD Calculator'!D14:H"&'TFD Calculator'!$J$98),MATCH(B90,INDIRECT("'TFD Calculator'!D14:D"&'TFD Calculator'!$J$98),0),4),"") ->  | E90: =IFERROR(INDEX(INDIRECT("'TFD Calculator'!D14:H"&'TFD Calculator'!$J$98),MATCH(B90,INDIRECT("'TFD Calculator'!D14:D"&'TFD Calculator'!$J$98),0),5),"") ->  | H90: =IFERROR(INDEX(INDIRECT("'TFD Calculator'!D14:H"&'TFD Calculator'!$J$98),MATCH(B90,INDIRECT("'TFD Calculator'!D14:D"&'TFD Calculator'!$J$98),0),2),"") -> 
D91: =IFERROR(INDEX(INDIRECT("'TFD Calculator'!D14:H"&'TFD Calculator'!$J$98),MATCH(B91,INDIRECT("'TFD Calculator'!D14:D"&'TFD Calculator'!$J$98),0),4),"") ->  | E91: =IFERROR(INDEX(INDIRECT("'TFD Calculator'!D14:H"&'TFD Calculator'!$J$98),MATCH(B91,INDIRECT("'TFD Calculator'!D14:D"&'TFD Calculator'!$J$98),0),5),"") ->  | H91: =IFERROR(INDEX(INDIRECT("'TFD Calculator'!D14:H"&'TFD Calculator'!$J$98),MATCH(B91,INDIRECT("'TFD Calculator'!D14:D"&'TFD Calculator'!$J$98),0),2),"") -> 
D92: =IFERROR(INDEX(INDIRECT("'TFD Calculator'!D14:H"&'TFD Calculator'!$J$98),MATCH(B92,INDIRECT("'TFD Calculator'!D14:D"&'TFD Calculator'!$J$98),0),4),"") ->  | E92: =IFERROR(INDEX(INDIRECT("'TFD Calculator'!D14:H"&'TFD Calculator'!$J$98),MATCH(B92,INDIRECT("'TFD Calculator'!D14:D"&'TFD Calculator'!$J$98),0),5),"") ->  | H92: =IFERROR(INDEX(INDIRECT("'TFD Calculator'!D14:H"&'TFD Calculator'!$J$98),MATCH(B92,INDIRECT("'TFD Calculator'!D14:D"&'TFD Calculator'!$J$98),0),2),"") -> 
D93: =IFERROR(INDEX(INDIRECT("'TFD Calculator'!D14:H"&'TFD Calculator'!$J$98),MATCH(B93,INDIRECT("'TFD Calculator'!D14:D"&'TFD Calculator'!$J$98),0),4),"") ->  | E93: =IFERROR(INDEX(INDIRECT("'TFD Calculator'!D14:H"&'TFD Calculator'!$J$98),MATCH(B93,INDIRECT("'TFD Calculator'!D14:D"&'TFD Calculator'!$J$98),0),5),"") ->  | H93: =IFERROR(INDEX(INDIRECT("'TFD Calculator'!D14:H"&'TFD Calculator'!$J$98),MATCH(B93,INDIRECT("'TFD Calculator'!D14:D"&'TFD Calculator'!$J$98),0),2),"") -> 
D94: =IFERROR(INDEX(INDIRECT("'TFD Calculator'!D14:H"&'TFD Calculator'!$J$98),MATCH(B94,INDIRECT("'TFD Calculator'!D14:D"&'TFD Calculator'!$J$98),0),4),"") ->  | E94: =IFERROR(INDEX(INDIRECT("'TFD Calculator'!D14:H"&'TFD Calculator'!$J$98),MATCH(B94,INDIRECT("'TFD Calculator'!D14:D"&'TFD Calculator'!$J$98),0),5),"") ->  | H94: =IFERROR(INDEX(INDIRECT("'TFD Calculator'!D14:H"&'TFD Calculator'!$J$98),MATCH(B94,INDIRECT("'TFD Calculator'!D14:D"&'TFD Calculator'!$J$98),0),2),"") -> 
D95: =IFERROR(INDEX(INDIRECT("'TFD Calculator'!D14:H"&'TFD Calculator'!$J$98),MATCH(B95,INDIRECT("'TFD Calculator'!D14:D"&'TFD Calculator'!$J$98),0),4),"") ->  | E95: =IFERROR(INDEX(INDIRECT("'TFD Calculator'!D14:H"&'TFD Calculator'!$J$98),MATCH(B95,INDIRECT("'TFD Calculator'!D14:D"&'TFD Calculator'!$J$98),0),5),"") ->  | H95: =IFERROR(INDEX(INDIRECT("'TFD Calculator'!D14:H"&'TFD Calculator'!$J$98),MATCH(B95,INDIRECT("'TFD Calculator'!D14:D"&'TFD Calculator'!$J$98),0),2),"") -> 
D96: =IFERROR(INDEX(INDIRECT("'TFD Calculator'!D14:H"&'TFD Calculator'!$J$98),MATCH(B96,INDIRECT("'TFD Calculator'!D14:D"&'TFD Calculator'!$J$98),0),4),"") ->  | E96: =IFERROR(INDEX(INDIRECT("'TFD Calculator'!D14:H"&'TFD Calculator'!$J$98),MATCH(B96,INDIRECT("'TFD Calculator'!D14:D"&'TFD Calculator'!$J$98),0),5),"") ->  | H96: =IFERROR(INDEX(INDIRECT("'TFD Calculator'!D14:H"&'TFD Calculator'!$J$98),MATCH(B96,INDIRECT("'TFD Calculator'!D14:D"&'TFD Calculator'!$J$98),0),2),"") -> 
D97: =IFERROR(INDEX(INDIRECT("'TFD Calculator'!D14:H"&'TFD Calculator'!$J$98),MATCH(B97,INDIRECT("'TFD Calculator'!D14:D"&'TFD Calculator'!$J$98),0),4),"") ->  | E97: =IFERROR(INDEX(INDIRECT("'TFD Calculator'!D14:H"&'TFD Calculator'!$J$98),MATCH(B97,INDIRECT("'TFD Calculator'!D14:D"&'TFD Calculator'!$J$98),0),5),"") ->  | H97: =IFERROR(INDEX(INDIRECT("'TFD Calculator'!D14:H"&'TFD Calculator'!$J$98),MATCH(B97,INDIRECT("'TFD Calculator'!D14:D"&'TFD Calculator'!$J$98),0),2),"") -> 
D98: =IFERROR(INDEX(INDIRECT("'TFD Calculator'!D14:H"&'TFD Calculator'!$J$98),MATCH(B98,INDIRECT("'TFD Calculator'!D14:D"&'TFD Calculator'!$J$98),0),4),"") ->  | E98: =IFERROR(INDEX(INDIRECT("'TFD Calculator'!D14:H"&'TFD Calculator'!$J$98),MATCH(B98,INDIRECT("'TFD Calculator'!D14:D"&'TFD Calculator'!$J$98),0),5),"") ->  | H98: =IFERROR(INDEX(INDIRECT("'TFD Calculator'!D14:H"&'TFD Calculator'!$J$98),MATCH(B98,INDIRECT("'TFD Calculator'!D14:D"&'TFD Calculator'!$J$98),0),2),"") -> 
D99: =IFERROR(INDEX(INDIRECT("'TFD Calculator'!D14:H"&'TFD Calculator'!$J$98),MATCH(B99,INDIRECT("'TFD Calculator'!D14:D"&'TFD Calculator'!$J$98),0),4),"") ->  | E99: =IFERROR(INDEX(INDIRECT("'TFD Calculator'!D14:H"&'TFD Calculator'!$J$98),MATCH(B99,INDIRECT("'TFD Calculator'!D14:D"&'TFD Calculator'!$J$98),0),5),"") ->  | H99: =IFERROR(INDEX(INDIRECT("'TFD Calculator'!D14:H"&'TFD Calculator'!$J$98),MATCH(B99,INDIRECT("'TFD Calculator'!D14:D"&'TFD Calculator'!$J$98),0),2),"") -> 
D100: =IFERROR(INDEX(INDIRECT("'TFD Calculator'!D14:H"&'TFD Calculator'!$J$98),MATCH(B100,INDIRECT("'TFD Calculator'!D14:D"&'TFD Calculator'!$J$98),0),4),"") ->  | E100: =IFERROR(INDEX(INDIRECT("'TFD Calculator'!D14:H"&'TFD Calculator'!$J$98),MATCH(B100,INDIRECT("'TFD Calculator'!D14:D"&'TFD Calculator'!$J$98),0),5),"") ->  | H100: =IFERROR(INDEX(INDIRECT("'TFD Calculator'!D14:H"&'TFD Calculator'!$J$98),MATCH(B100,INDIRECT("'TFD Calculator'!D14:D"&'TFD Calculator'!$J$98),0),2),"") -> 

Sheet DO NOT USE (hidden)
A2: 2 Disturbance and infrastructure
A3: 3 Weed management and control
A4: 4 Pest animal controls
A5: 5 PCTs and TECs
A6: 6 Threatened species habitat
A7: 7 Grazing management
A8: 8 Fire management
A9: 9 Monitoring and adaptive management

Sheet Example (hidden)
B1: Example - estimating Trust Fund Deposit and calculating credit price
B5: About the Site
B6: A 200ha area of land with native vegetation is considered for establishing a BioBank site. The landowner is committed to permanent protection and management of the site for conservation but is also keen to derive economic benefit and obtain financial resources to pay for site management that would improve the condition of vegetation and habitat of species present on their site.
B7: Based on research of the potential market demand and preliminary advice obtained from the local environmental consultancy, the landowner has determined that the vegetation type present on the site is under a lot of development pressure and in limited supply. The biodiversity credits that can therefore be generated on the property are expected to be in high demand and attract a good price on the market. After considering the implications of establishing a BioBank site (obligations and some potential risks are listed in the Guide to establishing a BioBank site) and discussing this opportunity with people involved or affected by his decision, the landowner hired a BioBanking Assessor to perform a site assessment. The results were used by the assessor to calculate the number and type of biodiversity credits and produce a credit report that the landowner will submit with his application for a BioBanking agreement.
B8: Before the completed application could be sent to DECC, the landowner had to develop a draft Management Plan for the BioBank site. The landowner sought expert advice for some management actions that required specific knowledge and experience the landowner did not have. The landowner then used the Biodiversity Pricing Spreadsheet to determine the minimum amount, in perpetuity, that would cover the costs of managing the BioBank site. The Biodiversity Pricing Spreadsheet therefore allowed the landowner to determine the asking price for the biodiversity credits generated by his BioBank land.
B10: Mandatory BioBank Site Management Costs
B11: In the first table of the Total Fund Amount calculation (or Part A Mandatory Costs), the landowner lists all management actions he commits to undertake on the site as proposed in the Management Plan. Each "Item" in the table should correspond to a different management action. Details of how the management action will be implemented on the BioBank site are recorded in the "Description" column of the table. Where there is a need to separate tasks associated with one management action, for example where the frequency varied or several tasks were required to implement a specific management action, it should be recorded as different tasks in separate lines of the table.
B12: In the "Timing" column, the landowner records the year of implementation for each management action. Important points to indicate here include if any action is expected to stop after a certain time (e.g. intensive weed control and intensive vertebrate pest control will stop in year 5); if costs are periodic (e.g. Fence maintenance will take place every 20 years) or continue on an annual basis (e.g. reporting fees).
B13: The landowner enters costs of all mandatory site management actions, based on a conservative estimation of materials and labor, into the table. The costs should be calculated in today's dollar value as the table will determine any future increase in costs and provide a discounted current value. In order to provide a conservative estimate the cost of hiring labour should be included even if the landowner is planning to complete any tasks themselves in case the landowner is not able to perform the task in the future. A conservative estimate ensures that the Trust Fund Account will have sufficient money to comply with the agreement regardless of the circumstances but will also increase the price of credits and make the site more attractive to prospective future buyers.
B14: One particular management action required for this landowners BioBank site is the erection and maintenance of fences. It is expected to cost the landowner $40,000 after deduction for the neighbour's obligation to pay half. Fence maintenance costs are included in the budget for fence replacement which can be done in phases. The landowner has also insured the fence in case of fire or other unexpected damage and the insurance premium payments are recorded as "Other Reoccurring Costs".
B15: Another management action required for this BioBank site is pest control. The landowner will undertake intensive vertebrate pest control between years 1 and 5. The estimated annual cost of the intensive pest management is $10,000. It will be followed by ongoing vertebrate pest control starting in year 6. The annual cost of the ongoing pest management is estimated by the landowner to be $5,000.
B16: The landowner understands that if threatened species which qualify for 'species credits' are found on his BioBank site during the survey then additional management may be required. At the time of the site assessment there were no such species found, however some threatened species are present in the neighbouring area and the landowner hopes that with the proposed protection and management of his BioBank site some of these species may find a suitable habitat on his property. The detection of threatened species at a later date will make the landowner eligible to apply for the credits at that later date. The landowner is only required to implement management procedures specific to the biodiversity of his site and as such other BioBank sites may required different management actions.
B18: Other Annual Costs to be Considered
B19: The landowner has included all remaining costs related to the ongoing management of the BioBank site under the "Other Reoccurring Costs" heading in the second table entitled 'Recommended'. These costs include: rates of $3,000 annually; insurance premiums of $5,000 annually; BioBank site administration costs. The landowner is planning to prepare annual reports himself, but in order to ensure that the Trust Account is calculated conservatively the cost of preparing reports is included in the Total Fund Deposit calculation. A conservative calculation ensures that the Trust Account will have sufficient funds to complete all management if the landowner is no longer able to complete the tasks they previously intended to.
B20: The landowner has only included long-term viability cost categories in this table conscious that additional non-essential costs would increase price of their credits.
B22: Calculation of the Total Annual Site Management Cost and Total Fund Deposit
B23: In order to complete the calculation enter the required data in the yellow cells in the tables below. The formula works as follows: the average cost for each line where "high" and "low" cost levels are entered is calculated. Secondly, the formulae contained in the table distributes these costs between future years depending on the start and end date and specified frequency. Finally, gray cells sum up yearly cost, in today's value, for the first 20 years of the BioBank site operation. The yearly costs will vary depending on the payment frequency (input in the "Timing" section of the table) of each cost item included by the landowner. A summary of the total cost for each year is included in the gray "Cost in today's value" cells and a summary of what the landowner can expect to input into the Trust Fund Account to cover costs associated with the BioBank site is included in the blue "Trust Fund Deposit" cells.
B24: The "Total Fund Deposit" is the total amount that needs to be paid into the Trust Fund Account at the time of establishment of a BioBank site (after the sale of first credit/s) to cover site management costs in the future. It is calculated by translating yearly costs expressed in today's value (in gray) to their present value equivalent (in blue). The translation of future costs to their present value is calculated by financial discunting using the real interest rate. A discount rate of 3.5% throughout is applied to the "costs in today's value" amounts. The consumer Price Index (CPI) rate is included in this calculation to account for inflation.
B25: The landowner can include a risk margin on top of the outlined management costs, in this case 10%, to ensure that any unexpected or increases in costs can still be paid for by the Trust Fund Account. This will however increase Total Fund Deposit amount and therefore the credit price.
B26: Subtotals of the BioBank site management costs and other reoccurring costs are calculated automatically in the respective tables. The "Total Trust Fund Deposit" is in purple and is displayed excluding and including the risk margin. The landowner's Trust Fund Deposit for this example, to be paid into the Trust Fund Account, as a result of proceeds from the first sale of credits is equal to $818,862 including a 10% risk margin. Once the full Trust Fund Deposit amount is satisfied, there should be sufficient funds for the BioBank site management into the future. This amount should be considered the lowest price (or "floor" price) for selling their credits on the market.
B27: Total Fund Deposit amount is incorporated into the BioBanking agreement. BioBanking agreement also includes a Schedule of Payments which is based on the estimated annual total site management costs as displayed in gray line labeled "Total annual site management cost in today's value" (in Trust Fund Deposit calculation tables).
B29: Payments from the BioBanking Trust Fund account
B30: Once the landowner enters into a BioBanking agreement and sells their credits, the portion of the profit equal to the approved Total Fund Deposit is invested into their individual BioBank site account. The release of yearly management payments from that account to the landowner depends on a demonstration of compliance with the terms of the BioBanking agreement. This is done by annual reporting on performed management actions to DECC.
B31: The amount the BioBank site owner can expect to receive in a given year is based on the projected total site management cost for that year. This is recorded in the schedule of future payments to the landholder annexure in the BioBanking agreement. Calculated in present dollar value at the time of entering into the agreement, it will be adjusted for inflation experienced during the years leading up to the payment. The payments from the Trust Fund will be made after the Total Fund Deposit amount is satisfied from the sale of credits and annual reports submitted to DECC demonstrate compliance with the BioBanking agreement. Release of the payment is also dependant on funds availability and can be suspended if the funds are low, or increased if there is a surplus in the account.
J36: Real discount rate
B37: BioBank Site Location: | J37: (%) | K37: 0.035
B38: BioBank Site Owner:
B39: Are you registered for GST/do you have an ABN? | C39: Yes
B40: ABN:
B41: (OFFICE USE ONLY: BIMS REFERENCE NUMBER):
B42: (OFFICE USE ONLY: SAP BTF WBS):
B48: Management Actions Cost Items (mandatory) | C48: Description to Estimate Timing & Costs | D48: Timing | G48: Cost (per year) | J48: Year | AD48: Present value of payments during first 20 yrs | AE48: Present value of payments after 20 yrs | AF48: Present value of all payments
D49: Begin | E49: End (<=20yrs) | F49: Ongoing frequency (if not annual) | G49: Low | H49: High | I49: Average | J49: 1 | K49: 2 | L49: 3 | M49: 4 | N49: 5 | O49: 6 | P49: 7 | Q49: 8 | R49: 9 | S49: 10 | T49: 11 | U49: 12 | V49: 13 | W49: 14 | X49: 15 | Y49: 16 | Z49: 17 | AA49: 18 | AB49: 19 | AC49: 20
A50: =+B50&" - "&C50 -> Intensive weed control - Expected to occur over the first 5 years | B50: Intensive weed control | C50: Expected to occur over the first 5 years | D50: 4 | E50: 5 | G50: 20000 | H50: 20000 | I50: =IF(ISERROR(AVERAGE(G50:H50)),0,AVERAGE(G50:H50)) -> 20000 | J50: =IF(OR(ISBLANK($D50),$D50>J$49),0,IF(AND(NOT(ISBLANK($E50)),J$49>$E50),0,IF(MOD((J$49-$D50),MAX($F50,1))=0,$I50,0))) -> 0 | K50: =IF(OR(ISBLANK($D50),$D50>K$49),0,IF(AND(NOT(ISBLANK($E50)),K$49>$E50),0,IF(MOD((K$49-$D50),MAX($F50,1))=0,$I50,0))) -> 0 | L50: 0 | M50: 20000 | N50: 20000 | O50: 0 | P50: 0 | Q50: 0 | R50: 0 | S50: 0 | T50: 0 | U50: 0 | V50: 0 | W50: 0 | X50: 0 | Y50: 0 | Z50: 0 | AA50: =IF(OR(ISBLANK($D50),$D50>AA$49),0,IF(AND(NOT(ISBLANK($E50)),AA$49>$E50),0,IF(MOD((AA$49-$D50),MAX($F50,1))=0,$I50,0))) -> 0 | AB50: 0 | AC50: 0 | AD50: =+SUMPRODUCT(J50:AC50,$J$66:$AC$66) -> 35467.69867 | AE50: =(IF(ISBLANK(D50),0,IF(E50,0,((1+$K$37)^MOD($AC$49-D50,MAX(F50,1)))*((1+$K$37)^-$AC$49)*I50/((1+$K$37)^(MAX(F50,1))-1))))*(1+$K$37) -> 0 | AF50: =+AD50+AE50 -> 35467.69867
A51: =+B51&" - "&C51 -> Ongoing weed control - Estimated annual figure to control weeds from year 6 onwards | B51: Ongoing weed control | C51: Estimated annual figure to control weeds from year 6 onwards | D51: 6 | E51: 7 | G51: 1000 | H51: 5000 | I51: 3000 | J51: 0 | K51: 0 | L51: 0 | M51: 0 | N51: 0 | O51: 3000 | P51: 3000 | Q51: 0 | R51: 0 | S51: 0 | T51: 0 | U51: 0 | V51: 0 | W51: 0 | X51: 0 | Y51: 0 | Z51: 0 | AA51: 0 | AB51: 0 | AC51: 0 | AD51: 4966.421433 | AE51: 0 | AF51: =+AD51+AE51 -> 4966.421433
A52: Intensive vertebrate pest control - Expected to occur over the first 5 years | B52: Intensive vertebrate pest control | C52: Expected to occur over the first 5 years | D52: 1 | E52: 5 | G52: 50000 | I52: 50000 | J52: 50000 | K52: 50000 | L52: 50000 | M52: 50000 | N52: 50000 | O52: 0 | P52: 0 | Q52: 0 | R52: 0 | S52: 0 | T52: 0 | U52: 0 | V52: 0 | W52: 0 | X52: 0 | Y52: 0 | Z52: 0 | AA52: 0 | AB52: 0 | AC52: 0 | AD52: 233653.9604 | AE52: 0 | AF52: 233653.9604
A53: Ongoing vertebrate pest control - Estimated annual figure to control pests from year 6 onwards | B53: Ongoing vertebrate pest control | C53: Estimated annual figure to control pests from year 6 onwards | D53: 6 | F53: 1 | H53: 5000 | I53: 5000 | J53: 0 | K53: 0 | L53: 0 | M53: 0 | N53: 0 | O53: 5000 | P53: 5000 | Q53: 5000 | R53: 5000 | S53: 5000 | T53: 5000 | U53: 5000 | V53: 5000 | W53: 5000 | X53: 5000 | Y53: 5000 | Z53: 5000 | AA53: 5000 | AB53: 5000 | AC53: 5000 | AD53: 50183.79104 | AE53: 74307.95577 | AF53: 124491.7468
A54: Ecological fire management - Expected to occur every 10 years, starting at year 10 | B54: Ecological fire management | C54: Expected to occur every 10 years, starting at year 10 | D54: 10 | F54: 10 | G54: 1 | H54: 2 | I54: 1.5 | J54: 0 | K54: 0 | L54: 0 | M54: 0 | N54: 0 | O54: 0 | P54: 0 | Q54: 0 | R54: 0 | S54: 1.5 | T54: 0 | U54: 0 | V54: 0 | W54: 0 | X54: 0 | Y54: 0 | Z54: 0 | AA54: 0 | AB54: 0 | AC54: 1.5 | AD54: 1.880829994 | AE54: 1.900233538 | AF54: 3.781063532
A55: Firebreak / track maintenance - Expected to occur every 4 years, starting at year 4 | B55: Firebreak / track maintenance | C55: Expected to occur every 4 years, starting at year 4 | D55: 4 | F55: 4 | H55: 4000 | I55: 4000 | J55: 0 | K55: 0 | L55: 0 | M55: 4000 | N55: 0 | O55: 0 | P55: 0 | Q55: 4000 | R55: 0 | S55: 0 | T55: 0 | U55: 4000 | V55: 0 | W55: 0 | X55: 0 | Y55: 4000 | Z55: 0 | AA55: 0 | AB55: 0 | AC55: 4000 | AD55: 13959.70276 | AE55: 14103.71774 | AF55: 28063.4205
A56: Fence erection and maintenance - Fence erection in year 1 and replacement every 20 years, starting at year 20 | B56: Fence erection and maintenance | C56: Fence erection in year 1 and replacement every 20 years, starting at year 20 | D56: 1 | F56: 20 | G56: 40000 | I56: 40000 | J56: 40000 | K56: 0 | L56: 0 | M56: 0 | N56: 0 | O56: 0 | P56: 0 | Q56: 0 | R56: 0 | S56: 0 | T56: 0 | U56: 0 | V56: 0 | W56: 0 | X56: 0 | Y56: 0 | Z56: 0 | AA56: 0 | AB56: 0 | AC56: 0 | AD56: 40000 | AE56: 40412.65918 | AF56: 80412.65918
A57: Other Recurring BioBank Site Management Cost Items - Description to Estimate Timing & Costs | B57: Other Recurring BioBank Site Management Cost Items | C57: =C48 -> Description to Estimate Timing & Costs | D57: =D48 -> Timing | G57: =G48 -> Cost (per year)
A58: Annual management report compliance fee - Annual fee on submission of the report. Payment made directly from the BioBanking Trust Fund to DECC. | B58: Annual management report compliance fee | C58: Annual fee on submission of the report. Payment made directly from the BioBanking Trust Fund to DECC. | D58: 1 | G58: 1225 | H58: 1225 | I58: =IF(ISERROR(AVERAGE(G58:H58)),0,AVERAGE(G58:H58)) -> 1225 | J58: =IF(OR(ISBLANK($D58),$D58>J$49),0,IF(AND(NOT(ISBLANK($E58)),J$49>$E58),0,IF(MOD((J$49-$D58),MAX($F58,1))=0,$I58,0))) -> 1225 | K58: 1225 | L58: 1225 | M58: 1225 | N58: 1225 | O58: 1225 | P58: 1225 | Q58: 1225 | R58: 1225 | S58: 1225 | T58: 1225 | U58: 1225 | V58: 1225 | W58: 1225 | X58: 1225 | Y58: 1225 | Z58: 1225 | AA58: 1225 | AB58: 1225 | AC58: 1225 | AD58: =+SUMPRODUCT(J58:AC58,$J$66:$AC$66) -> 18019.55084 | AE58: =(IF(ISBLANK(D58),0,IF(E58,0,((1+$K$37)^MOD($AC$49-D58,MAX(F58,1)))*((1+$K$37)^-$AC$49)*I58/((1+$K$37)^(MAX(F58,1))-1))))*(1+$K$37) -> 18205.44916 | AF58: =+AD58+AE58 -> 36225
A59: Rates (e.g. Council) - Annual amount | B59: Rates (e.g. Council) | C59: Annual amount | D59: 1 | G59: 3000 | H59: 3000 | I59: =IF(ISERROR(AVERAGE(G59:H59)),0,AVERAGE(G59:H59)) -> 3000 | J59: =IF(OR(ISBLANK($D59),$D59>J$49),0,IF(AND(NOT(ISBLANK($E59)),J$49>$E59),0,IF(MOD((J$49-$D59),MAX($F59,1))=0,$I59,0))) -> 3000 | K59: 3000 | L59: 3000 | M59: 3000 | N59: 3000 | O59: 3000 | P59: 3000 | Q59: 3000 | R59: 3000 | S59: 3000 | T59: 3000 | U59: 3000 | V59: 3000 | W59: 3000 | X59: 3000 | Y59: 3000 | Z59: 3000 | AA59: 3000 | AB59: 3000 | AC59: 3000 | AD59: =+SUMPRODUCT(J59:AC59,$J$66:$AC$66) -> 44129.51225 | AE59: =(IF(ISBLANK(D59),0,IF(E59,0,((1+$K$37)^MOD($AC$49-D59,MAX(F59,1)))*((1+$K$37)^-$AC$49)*I59/((1+$K$37)^(MAX(F59,1))-1))))*(1+$K$37) -> 44584.77346 | AF59: =+AD59+AE59 -> 88714.28571
A60: Insurance (e.g. fences, public liability) - Annual amount | B60: Insurance (e.g. fences, public liability) | C60: Annual amount | D60: 1 | G60: 5000 | H60: 5000 | I60: =IF(ISERROR(AVERAGE(G60:H60)),0,AVERAGE(G60:H60)) -> 5000 | J60: 5000 | K60: 5000 | L60: 5000 | M60: 5000 | N60: 5000 | O60: 5000 | P60: 5000 | Q60: 5000 | R60: 5000 | S60: 5000 | T60: 5000 | U60: 5000 | V60: 5000 | W60: 5000 | X60: 5000 | Y60: 5000 | Z60: 5000 | AA60: 5000 | AB60: 5000 | AC60: 5000 | AD60: =+SUMPRODUCT(J60:AC60,$J$66:$AC$66) -> 73549.18709 | AE60: =(IF(ISBLANK(D60),0,IF(E60,0,((1+$K$37)^MOD($AC$49-D60,MAX(F60,1)))*((1+$K$37)^-$AC$49)*I60/((1+$K$37)^(MAX(F60,1))-1))))*(1+$K$37) -> 74307.95577 | AF60: =+AD60+AE60 -> 147857.1429
A61: Business management/ Administration costs - Estimated business management costs associated with biobank site | B61: Business management/ Administration costs | C61: Estimated business management costs associated with biobank site | D61: 1 | G61: 5000 | H61: 5000 | I61: =IF(ISERROR(AVERAGE(G61:H61)),0,AVERAGE(G61:H61)) -> 5000 | J61: 5000 | K61: 5000 | L61: 5000 | M61: 5000 | N61: 5000 | O61: 5000 | P61: 5000 | Q61: 5000 | R61: 5000 | S61: 5000 | T61: 5000 | U61: 5000 | V61: 5000 | W61: 5000 | X61: 5000 | Y61: 5000 | Z61: 5000 | AA61: 5000 | AB61: 5000 | AC61: 5000 | AD61: =+SUMPRODUCT(J61:AC61,$J$66:$AC$66) -> 73549.18709 | AE61: =(IF(ISBLANK(D61),0,IF(E61,0,((1+$K$37)^MOD($AC$49-D61,MAX(F61,1)))*((1+$K$37)^-$AC$49)*I61/((1+$K$37)^(MAX(F61,1))-1))))*(1+$K$37) -> 74307.95577 | AF61: =+AD61+AE61 -> 147857.1429
A62: Annual monitoring & reporting requirements per biobanking agreement - Annual expected landowner time to complete annual reporting requirements | B62: Annual monitoring & reporting requirements per biobanking agreement | C62: Annual expected landowner time to complete annual reporting requirements | D62: 1 | G62: 500 | H62: 500 | I62: =IF(ISERROR(AVERAGE(G62:H62)),0,AVERAGE(G62:H62)) -> 500 | J62: 500 | K62: 500 | L62: 500 | M62: 500 | N62: 500 | O62: 500 | P62: 500 | Q62: 500 | R62: 500 | S62: 500 | T62: 500 | U62: 500 | V62: 500 | W62: 500 | X62: 500 | Y62: 500 | Z62: 500 | AA62: 500 | AB62: 500 | AC62: 500 | AD62: =+SUMPRODUCT(J62:AC62,$J$66:$AC$66) -> 7354.918709 | AE62: =(IF(ISBLANK(D62),0,IF(E62,0,((1+$K$37)^MOD($AC$49-D62,MAX(F62,1)))*((1+$K$37)^-$AC$49)*I62/((1+$K$37)^(MAX(F62,1))-1))))*(1+$K$37) -> 7430.795577 | AF62: =+AD62+AE62 -> 14785.71429
I63: BioBank site management cost in today's value | J63: =SUM(J58:J62)+SUM(J50:J56) -> 104725 | K63: 64725 | L63: 64725 | M63: 88725 | N63: 84725 | O63: 22725 | P63: 22725 | Q63: 23725 | R63: 19725 | S63: 19726.5 | T63: 19725 | U63: 23725 | V63: 19725 | W63: 19725 | X63: 19725 | Y63: 23725 | Z63: 19725 | AA63: 19725 | AB63: 19725 | AC63: 23726.5 | AF63: Grand Total
I64: Present Value (PV) of the biobank site management cost | J64: =J63*(1+$K$37)^-(J49-1) -> 104725 | K64: 62536.23188 | L64: 60421.48008 | M64: 80024.86656 | N64: 73832.94274 | O64: 19133.84022 | P64: 18486.80214 | Q64: 18647.63554 | R64: 14979.39295 | S64: 14473.94402 | T64: 13983.4236 | U64: 16250.33706 | V64: 13053.67556 | W64: 12612.24692 | X64: 12185.74581 | Y64: 14161.22993 | Z64: 11375.52411 | AA64: 10990.84455 | AB64: 10619.17348 | AC64: 12341.47399 | AD64: =SUM(AD58:AD62)+SUM(AD50:AD56) -> 594835.8111 | AE64: =SUM(AE58:AE62)+SUM(AE49:AE56) -> 347663.1627 | AF64: =+AD64+AE64 -> 942498.9738
H66: Discount Factors | J66: =+(1+$K$37)^-(J49-1) -> 1 | K66: =+(1+$K$37)^-(K49-1) -> 0.9661835749 | L66: 0.9335107004 | M66: 0.9019427057 | N66: 0.8714422277 | O66: 0.8419731669 | P66: 0.8135006443 | Q66: 0.7859909607 | R66: 0.7594115562 | S66: 0.7337309722 | T66: 0.7089188137 | U66: 0.6849457137 | V66: 0.6617832983 | W66: 0.6394041529 | X66: 0.6177817903 | Y66: 0.5968906186 | Z66: 0.5767059117 | AA66: 0.5572037794 | AB66: 0.5383611396 | AC66: 0.5201556904
J69: Year | AD69: Present value of payments during first 20 yrs | AE69: Present value of payments after 20 yrs | AF69: Present value of all payments
J70: 1 | K70: 2 | L70: 3 | M70: 4 | N70: 5 | O70: 6 | P70: 7 | Q70: 8 | R70: 9 | S70: 10 | T70: 11 | U70: 12 | V70: 13 | W70: 14 | X70: 15 | Y70: 16 | Z70: 17 | AA70: 18 | AB70: 19 | AC70: 20
I71: Annual BioBank site management costs in today's values | J71: =J63 -> 104725 | K71: =K63 -> 64725 | L71: 64725 | M71: 88725 | N71: 84725 | O71: 22725 | P71: 22725 | Q71: 23725 | R71: 19725 | S71: =S63 -> 19726.5 | T71: 19725 | U71: 23725 | V71: 19725 | W71: 19725 | X71: 19725 | Y71: 23725 | Z71: 19725 | AA71: 19725 | AB71: 19725 | AC71: 23726.5 | AD71: =+SUM(AD47:AD62) -> 594835.8111 | AE71: =AE64 -> 347663.1627 | AF71: =+AD71+AE71 -> 942498.9738
I72: Gross Proposed Annual Payment Schedule from BioBank Trust Fund (including GST if applicable) | J72: =IF($C$39="Yes",(J71-J58)*1.1+J58,J71) -> 115075 | K72: =IF($C$39="Yes",(K71-K58)*1.1+K58,K71) -> 71075 | L72: 71075 | M72: 97475 | N72: 93075 | O72: 24875 | P72: 24875 | Q72: 25975 | R72: 21575 | S72: 21576.65 | T72: 21575 | U72: 25975 | V72: 21575 | W72: 21575 | X72: 21575 | Y72: 25975 | Z72: 21575 | AA72: 21575 | AB72: 21575 | AC72: 25976.65 | AD72: 652517.4372 | AE72: 380608.934 | AF72: 1033126.371
I73: Comprising:
I74: Proposed Payment Schedule from BTF to Site Landowner for management action costs | J74: =+J71-J58 -> 103500 | K74: =+K71-K58 -> 63500 | L74: 63500 | M74: 87500 | N74: 83500 | O74: 21500 | P74: 21500 | Q74: 22500 | R74: 18500 | S74: 18501.5 | T74: 18500 | U74: 22500 | V74: 18500 | W74: 18500 | X74: 18500 | Y74: 22500 | Z74: 18500 | AA74: 18500 | AB74: 18500 | AC74: 22501.5 | AD74: 576816.2603 | AE74: 329457.7135 | AF74: 906273.9738
I75: Proposed Payment Schedule from BTF to DECC for annual compliance | J75: =J58 -> 1225 | K75: =K58 -> 1225 | L75: 1225 | M75: 1225 | N75: 1225 | O75: 1225 | P75: 1225 | Q75: 1225 | R75: 1225 | S75: 1225 | T75: 1225 | U75: 1225 | V75: 1225 | W75: 1225 | X75: 1225 | Y75: 1225 | Z75: 1225 | AA75: 1225 | AB75: 1225 | AC75: 1225 | AD75: 18019.55084 | AE75: 18205.44916 | AF75: 36225
B76: Yes | I76: GST (to be remitted to the ATO by Site Landowner) | J76: =IF($C$39="Yes",(J71-J58)*0.1,0) -> 10350 | K76: =IF($C$39="Yes",(K71-K58)*0.1,0) -> 6350 | L76: 6350 | M76: 8750 | N76: 8350 | O76: 2150 | P76: 2150 | Q76: 2250 | R76: 1850 | S76: 1850.15 | T76: 1850 | U76: 2250 | V76: 1850 | W76: 1850 | X76: 1850 | Y76: 2250 | Z76: 1850 | AA76: 1850 | AB76: 1850 | AC76: 2250.15 | AD76: 57681.62603 | AE76: 32945.77135 | AF76: 90627.39738
I78: GST (Input tax credit to be claimed from the ATO by BTF) | J78: =-J76 -> -10350 | K78: =-K76 -> -6350 | L78: -6350 | M78: -8750 | N78: -8350 | O78: -2150 | P78: -2150 | Q78: -2250 | R78: -1850 | S78: -1850.15 | T78: -1850 | U78: -2250 | V78: -1850 | W78: -1850 | X78: -1850 | Y78: -2250 | Z78: -1850 | AA78: -1850 | AB78: -1850 | AC78: -2250.15 | AD78: -57681.62603 | AE78: -32945.77135 | AF78: -90627.39738
B89: Part B - Calculating Biodiversity Credits Price
B92: BioBank Site Description | D92: Example
B93: Area of the proposed BioBank site (ha) | D93: 200 | F93: In the above section, the landowner recorded the area of the proposed BioBank site at 200ha and expected the biodiversity credits to be issued after entering into the BioBanking Agreement (the number of biodiversity credits is obtained from the BioBanking Assessor in the Credit Calculator Report). This information will assist in the calculation of a credit price per ha or per credit basis.
B94: No. of biodiversity credits issued | D94: 450
A96: PART B | B96: Opportunity Cost to Landholder (optional) | D96: Example
B97: Market Value of land ($ per ha) | D97: 10000
B98: Total market value of land ($ per ha x area) | D98: =D97*D93 -> 2000000
B99: Stamp Duty (Not applicable if property already owned) | D99: 0 | F99: Part B Costs
B100: Total opportunity cost to landowner | D100: =D98+D99 -> 2000000 | F100: The landowner may account for one-time costs associated with entering into a BioBanking agreement as well as opportunity costs. Including opportunity costs in the credit price is optional and may decrease the competitiveness of the price on the open market however, it allows the landowner to recover land value and/or potential decrease in the future release land (estimated to be $10,000 per ha or $2M for entire BioBank site area of 200ha) and to include a desired profit margin of 20%.
B102: Costs of Enter into a BioBanking Agreement | D102: Example
B103: Site assessment (incl. vegetation mapping, flora & fauna surveys) | D103: 4000
B104: Preparation of a Management Plan | D104: 1500
B105: BioBanking Agreement application fee | D105: 600
B106: Legal Fees | D106: 500
B107: Other (eg annual Council/RLPB/Dept. Lands Rates for year(s) prior to expected first sale of credits) | D107: 1000
B108: Total costs to enter into a BioBanking Agreement (excluding interest repayments) | D108: =SUM(D103:D107) -> 7600 | F108: The landowner engaged an accredited BioBanking Assessor to perform site assessment and credit calculation of the site at an agreed price of $4,000. The landowner used expert advice in prepairing the Management Plan, where he did not have sufficient knowledge, with costs amounting to $1,500. Finally, the landowner included the application fee of $600 for the Credit Cost Calculation.
B109: Interest repayments (if funds borrowed as an investment) at 10% | D109: =D108*0.1 -> 760
B110: Total costs to enter into a BioBanking Agreement (including interest incurred) | D110: =SUM(D108:D109) -> 8360
A112: PART A | B112: Trust Fund Deposit (from the Total Fund Deposit worksheet) | D112: Example
B113: Total Fund Deposit for BioBank site management (mandatory) | D113: =+AF71 -> 942498.9738
B114: Total ongoing BioBank site management costs (including risk margin) | D114: =D113 -> 942498.9738
F115: If the landowner sought legal or financial advice related to entering into a BioBanking agreement, the cost of this advice would be included in this section. It is noted that for this example not all cost lines in the Part B table were applicable and were therefore not used.
A116: TOTAL COSTS | B116: Total Costs | D116: Example
B117: Trust Fund Deposit | D117: =D114 -> 942498.9738
B118: Total cost to enter into a biobanking Agreement | D118: =D110 -> 8360
B119: Total opportunity cost to landowner | D119: =D100 -> 2000000 | F119: As the landowner used borrowed funds to pay for the costs associated with the preparation of the application for a BioBanking agreement the cost must also be included in this section. In this example the funds were borrowed at 10% interest rate.
B120: Total cost | D120: =D117+D118+D119 -> 2950858.974
B121: Profit margin (enter %) | D121: 0.1
B122: Profit margin ($) | D122: =D121*D120 -> 295085.8974 | F122: Part A costs
B123: Total price of credits (profit margin included) | D123: =SUM(D120,D122) -> 3245944.871 | F123: This section is populated automatically using outcomes of the calculations of the Total Fund Deposit in the above tables. Therefore, the cost of the ongoing biobank site management is included in the credit price calculation.
A126: CREDIT PRICE | B126: Potential credit price
B128: Trust Fund Deposit amount per credit | D128: =D117/D94 -> 2094.442164 | F128: Total Credit Price (Part A + Part B)
B130: Cost to enter into a biokanking agreement per credit | D130: =D118/D94 -> 18.57777778 | F130: The total credit price reflects all the costs and returns the landowner included in their calculations. It helps to determine what is a desired minimum asking price for the biodiversity credits established by a proposed BioBank site on their property and managing it into the future. The total amount required for this site is $3,201,246 (including risk margin). When this amount is divided by the number of hectares, the landowner can estimate total cost of establishing a BioBank site on a per hectare basis.
B131: Cost to enter into a biokanking agreement per credit | D131: =D119/D94 -> 4444.444444
B132: Profit margin per credit | D132: =D122/D94 -> 655.7464386
B133: Individual credit price (total price / number of credits) | D133: =D123/D94 -> 7213.210825
B135: Proportion of biodiversity credits likely to be sold (enter %) | D135: 0.75
B136: Total amount based on the % of credits estimated to be sold | D136: =D123*D135 -> 2434458.653 | F136: This table allows the landowner to see what his minimum asking price per credit should be, in this example the individual credit price is $7,114 (including risk margin). Another useful function is estimating what percentage of the credits they are likely to sell on the market and therefore adjusting the per credit price to recover the full cost of establishing a BioBank site. For example the landowner can see how much they would need to charge per credit if they were only able to sell 75% of the total credits held. The asking price in this situation should be at least $9,485 per credit (including risk margin). And finally, the landowner can determine the amount of return, which is $5,348 per credit (including risk margin).
B137: Individual credit price (Price of credit calculated on the total amount of deposit required and the % of credits estimated to be sold i.e. Where it is assumed that less than 100% of credits will be sold, the individual credit price will need to be higher in order to recoup costs) | D137: =D123/(D94*D135) -> 9617.614433
F142: NOTE: This table should be used as a checklist to guide the landholder’s credit price consideration and help inform their decision making when entering into a BioBanking Agreement.

Sheet CP_EG (hidden)
B2: Credit Pricing worksheet
B5: SITE | C5: Biobank site description | D5: Scenario 1 | E5: Scenario 2 | F5: Scenario 3 | G5: Scenario 4 | H5: Scenario 5
C6: Area of the proposed biobank site (ha) | D6: 200
C7: No. of biodiversity credits issued | D7: 450 | E7: 1 | F7: 1 | G7: 1 | H7: 1
B9: PART B | C9: Costs to enter into a biobanking agreement | D9: Scenario 1 | E9: Scenario 2 | F9: Scenario 3 | G9: Scenario 4 | H9: Scenario 5
C10: Site assessment and Biobanking Agreement Credit Report preparation | D10: 4000
C11: Preparation of management actions | D11: 1500
C12: Biobanking agreement application fee | D12: 612 | E12: 612 | F12: 612 | G12: 612 | H12: 612
C13: Legal fees | D13: 500
C14: Other | D14: 1000
C15: Total cost to enter into a biobanking agreement (excluding interest) | D15: =SUM(D10:D14) -> 7612 | E15: =SUM(E10:E14) -> 612 | F15: =SUM(F10:F14) -> 612 | G15: =SUM(G10:G14) -> 612 | H15: =SUM(H10:H14) -> 612
C16: Interest repayments (enter %) per annum | D16: 0.1
C17: Interest repayments (if funds borrowed as an investment) | D17: =D15*D16 -> 761.2 | E17: =E15*E16 -> 0 | F17: =F15*F16 -> 0 | G17: =G15*G16 -> 0 | H17: =H15*H16 -> 0
C18: Total cost to enter into a biobanking agreement (including interest incurred) | D18: =SUM(D15+D17) -> 8373.2 | E18: =SUM(E15+E17) -> 612 | F18: =SUM(F15+F17) -> 612 | G18: =SUM(G15+G17) -> 612 | H18: =SUM(H15+H17) -> 612
C20: Opportunity cost to landowner (optional) | D20: Scenario 1 | E20: Scenario 2 | F20: Scenario 3 | G20: Scenario 4 | H20: Scenario 5
C21: Market value of land ($ per ha) | D21: 10000
C22: Total market value of land ($ per ha x area) | D22: =D21*D6 -> 2000000 | E22: =E21*E6 -> 0 | F22: =F21*F6 -> 0 | G22: =G21*G6 -> 0 | H22: =H21*H6 -> 0
C23: Stamp duty (not applicable if property already owned) | D23: 0
C24: Total opportunity cost to landowner | D24: =D22+D23 -> 2000000 | E24: =E22+E23 -> 0 | F24: =F22+F23 -> 0 | G24: =G22+G23 -> 0 | H24: =H22+H23 -> 0
B26: PART A | C26: Total Fund Deposit | D26: Scenario 1 | E26: Scenario 2 | F26: Scenario 3 | G26: Scenario 4 | H26: Scenario 5 | J26: From previous worksheet
C27: Total Fund Deposit | D27: 722864.251 | J27: =+'TFD Calculator'!$AE$35 -> 57566.25
B29: TOTAL | C29: Total costs | D29: Scenario 1 | E29: Scenario 2 | F29: Scenario 3 | G29: Scenario 4 | H29: Scenario 5
C30: Total Fund Deposit | D30: =D27 -> 722864.251 | E30: =E27 -> 0 | F30: =F27 -> 0 | G30: =G27 -> 0 | H30: =H27 -> 0
C31: Total cost to enter into a biobanking agreement | D31: =D18 -> 8373.2 | E31: =E18 -> 612 | F31: =F18 -> 612 | G31: =G18 -> 612 | H31: =H18 -> 612
C32: Total opportunity cost to landowner | D32: =D24 -> 2000000 | E32: =E24 -> 0 | F32: =F24 -> 0 | G32: =G24 -> 0 | H32: =H24 -> 0
C33: Total cost | D33: =D30+D31+D32 -> 2731237.451 | E33: =E30+E31+E32 -> 612 | F33: =F30+F31+F32 -> 612 | G33: =G30+G31+G32 -> 612 | H33: =H30+H31+H32 -> 612
C34: Profit margin (enter %) | D34: 0.1
C35: Profit or risk margin ($) | D35: =D33*D34 -> 273123.7451 | E35: =E33*E34 -> 0 | F35: =F33*F34 -> 0 | G35: =G33*G34 -> 0 | H35: =H33*H34 -> 0
C36: Desired total price of credits (including profit or risk margin) | D36: =D33+D35 -> 3004361.196 | E36: =E33+E35 -> 612 | F36: =F33+F35 -> 612 | G36: =G33+G35 -> 612 | H36: =H33+H35 -> 612
B38: CREDIT PRICE | C38: Potential credit price | D38: Scenario 1 | E38: Scenario 2 | F38: Scenario 3 | G38: Scenario 4 | H38: Scenario 5
C39: Trust Fund Deposit amount per credit | D39: =D30/D$7 -> 1606.365002 | E39: 0 | F39: 0 | G39: 0 | H39: 0
C40: Cost to enter into a biokanking agreement per credit | D40: 18.60711111 | E40: 612 | F40: 612 | G40: 612 | H40: 612
C41: Opportunity cost to landholder per credit | D41: 4444.444444 | E41: 0 | F41: 0 | G41: 0 | H41: 0
C42: Profit margin per credit | D42: =D35/D$7 -> 606.9416558 | E42: 0 | F42: 0 | G42: 0 | H42: 0
C43: Individual credit price (total price / number of credits) | D43: 6676.358214 | E43: 612 | F43: 612 | G43: 612 | H43: 612
C45: Proportion of biodiversity credits likely to be sold (enter %) | D45: 0.75 | E45: 1 | F45: 1 | G45: 1 | H45: 1
C46: Total amount to be received given the % of credits likely to be sold | D46: =D36*D45 -> 2253270.897 | E46: =E36*E45 -> 612 | F46: =F36*F45 -> 612 | G46: =G36*G45 -> 612 | H46: =H36*H45 -> 612
C47: Individual credit price to acheive the desired total price of credits given the % likely to be sold | D47: =D36/(D45*D7) -> 8901.810951 | E47: =E36/(E45*E7) -> 612 | F47: =F36/(F45*F7) -> 612 | G47: =G36/(G45*G7) -> 612 | H47: =H36/(H45*H7) -> 612
C48: Individual credit price to achieve 80% of the Total Fund Deposit given the % likely to be sold | D48: =D36/(0.8*D7) -> 8345.447767 | E48: =E36/(0.8*E7) -> 765 | F48: =F36/(0.8*F7) -> 765 | G48: =G36/(0.8*G7) -> 765 | H48: =H36/(0.8*H7) -> 765

Sheet TFD_EG (hidden)
B2: Total Fund Deposit worksheet (Part A costs)
B4: This template should be used for estimating the Total Fund Deposit and preparation of the Payment Schedule
B6: Biobank site location
B7: Biobank site owner
B8: Are you registered for GST/do you have an ABN? | C8: Yes
B9: ABN | H9: row num
B10: (OFFICE USE ONLY: BIMS REFERENCE NUMBER): | H10: mand count
B11: (OFFICE USE ONLY: SAP BTF WBS):
G13: Real discount rate
G14: 0.035
B17: Management action costs | C17: Timing | F17: Estimated annual cost ($) | G17: Year | AA17: Present value of payments for first 20 yrs | AB17: Present value of payments after 20 yrs | AC17: Present value of all payments
C18: Start year | D18: End year | E18: Frequency | G18: 1 | H18: 2 | I18: 3 | J18: 4 | K18: 5 | L18: 6 | M18: 7 | N18: 8 | O18: 9 | P18: 10 | Q18: 11 | R18: 12 | S18: 13 | T18: 14 | U18: 15 | V18: 16 | W18: 17 | X18: 18 | Y18: 19 | Z18: 20
B19: Intensive weed control - Expected to occur over the first 5 years | C19: 4 | D19: 5 | F19: 20000 | G19: =IF(OR(ISBLANK($C19),$C19>G$18),0,IF(AND(NOT(ISBLANK($D19)),G$18>$D19),0,IF(MOD((G$18-$C19),MAX($E19,1))=0,$F19,0))) -> 0 | H19: 0 | I19: 0 | J19: 20000 | K19: 20000 | L19: 0 | M19: 0 | N19: 0 | O19: 0 | P19: 0 | Q19: =IF(OR(ISBLANK($C19),$C19>Q$18),0,IF(AND(NOT(ISBLANK($D19)),Q$18>$D19),0,IF(MOD((Q$18-$C19),MAX($E19,1))=0,$F19,0))) -> 0 | R19: 0 | S19: 0 | T19: 0 | U19: 0 | V19: 0 | W19: 0 | X19: 0 | Y19: 0 | Z19: 0 | AA19: =+SUMPRODUCT(G19:Z19,$G$35:$Z$35) -> 35467.69867 | AB19: =(IF(ISBLANK(C19),0,IF(D19,0,((1+$G$14)^MOD($Z$18-C19,MAX(E19,1)))*((1+$G$14)^-$Z$18)*F19/((1+$G$14)^(MAX(E19,1))-1))))*(1+$G$14) -> 0 | AC19: =+AA19+AB19 -> 35467.69867
B20: Ongoing weed control - Estimated annual figure to control weeds from year 6 onwards | C20: 6 | D20: 7 | F20: 3000 | G20: 0 | H20: 0 | I20: 0 | J20: 0 | K20: 0 | L20: 3000 | M20: 3000 | N20: 0 | O20: 0 | P20: 0 | Q20: 0 | R20: 0 | S20: 0 | T20: 0 | U20: 0 | V20: 0 | W20: 0 | X20: 0 | Y20: 0 | Z20: 0 | AA20: 4966.421433 | AB20: 0 | AC20: 4966.421433
B21: Intensive vertebrate pest control - Expected to occur over the first 5 years | C21: 1 | D21: 5 | F21: 50000 | G21: 50000 | H21: 50000 | I21: 50000 | J21: 50000 | K21: 50000 | L21: 0 | M21: 0 | N21: 0 | O21: 0 | P21: 0 | Q21: 0 | R21: 0 | S21: 0 | T21: 0 | U21: 0 | V21: 0 | W21: 0 | X21: 0 | Y21: 0 | Z21: 0 | AA21: 233653.9604 | AB21: 0 | AC21: 233653.9604
B22: Ongoing vertebrate pest control - Estimated annual figure to control pests from year 6 onwards | C22: 6 | E22: 1 | F22: 5000 | G22: 0 | H22: 0 | I22: 0 | J22: 0 | K22: 0 | L22: 5000 | M22: 5000 | N22: 5000 | O22: 5000 | P22: 5000 | Q22: 5000 | R22: 5000 | S22: 5000 | T22: 5000 | U22: 5000 | V22: 5000 | W22: 5000 | X22: 5000 | Y22: 5000 | Z22: 5000 | AA22: 50183.79104 | AB22: 74307.95577 | AC22: 124491.7468
B23: Ecological fire management - Expected to occur every 10 years, starting at year 10 | C23: 10 | E23: 10 | F23: 1.5 | G23: 0 | H23: 0 | I23: 0 | J23: 0 | K23: 0 | L23: 0 | M23: 0 | N23: 0 | O23: 0 | P23: 1.5 | Q23: 0 | R23: 0 | S23: 0 | T23: 0 | U23: 0 | V23: 0 | W23: 0 | X23: 0 | Y23: 0 | Z23: 1.5 | AA23: 1.880829994 | AB23: 1.900233538 | AC23: 3.781063532
B24: Firebreak / track maintenance - Expected to occur every 4 years, starting at year 4 | C24: 4 | E24: 4 | F24: 4000 | G24: 0 | H24: 0 | I24: 0 | J24: 4000 | K24: 0 | L24: 0 | M24: 0 | N24: 4000 | O24: 0 | P24: 0 | Q24: 0 | R24: 4000 | S24: 0 | T24: 0 | U24: 0 | V24: 4000 | W24: 0 | X24: 0 | Y24: 0 | Z24: 4000 | AA24: 13959.70276 | AB24: 14103.71774 | AC24: 28063.4205
B25: Fence erection and maintenance - Fence erection in year 1 and replacement every 20 years, starting at year 20 | C25: 1 | E25: 20 | F25: 40000 | G25: 40000 | H25: 0 | I25: 0 | J25: 0 | K25: 0 | L25: 0 | M25: 0 | N25: 0 | O25: 0 | P25: 0 | Q25: 0 | R25: 0 | S25: 0 | T25: 0 | U25: 0 | V25: 0 | W25: 0 | X25: 0 | Y25: 0 | Z25: 0 | AA25: 40000 | AB25: 40412.65918 | AC25: 80412.65918
B26: Other recurring costs
B27: Annual management report compliance fee | C27: 1 | E27: 1 | F27: 1225 | G27: =IF(OR(ISBLANK($C27),$C27>G$18),0,IF(AND(NOT(ISBLANK($D27)),G$18>$D27),0,IF(MOD((G$18-$C27),MAX($E27,1))=0,$F27,0))) -> 1225 | H27: 1225 | I27: 1225 | J27: 1225 | K27: 1225 | L27: 1225 | M27: 1225 | N27: 1225 | O27: 1225 | P27: 1225 | Q27: =IF(OR(ISBLANK($C27),$C27>Q$18),0,IF(AND(NOT(ISBLANK($D27)),Q$18>$D27),0,IF(MOD((Q$18-$C27),MAX($E27,1))=0,$F27,0))) -> 1225 | R27: 1225 | S27: 1225 | T27: 1225 | U27: 1225 | V27: 1225 | W27: 1225 | X27: 1225 | Y27: 1225 | Z27: 1225 | AA27: =+SUMPRODUCT(G27:Z27,$G$35:$Z$35) -> 18019.55084 | AB27: =(IF(ISBLANK(C27),0,IF(D27,0,((1+$G$14)^MOD($Z$18-C27,MAX(E27,1)))*((1+$G$14)^-$Z$18)*F27/((1+$G$14)^(MAX(E27,1))-1))))*(1+$G$14) -> 18205.44916 | AC27: =+AA27+AB27 -> 36225
B28: Rates (e.g. Council) - Annual amount | C28: 1 | F28: 3000 | G28: 3000 | H28: 3000 | I28: 3000 | J28: 3000 | K28: 3000 | L28: 3000 | M28: 3000 | N28: 3000 | O28: 3000 | P28: 3000 | Q28: 3000 | R28: 3000 | S28: 3000 | T28: 3000 | U28: 3000 | V28: 3000 | W28: 3000 | X28: 3000 | Y28: 3000 | Z28: 3000 | AA28: =+SUMPRODUCT(G28:Z28,$G$35:$Z$35) -> 44129.51225 | AB28: =(IF(ISBLANK(C28),0,IF(D28,0,((1+$G$14)^MOD($Z$18-C28,MAX(E28,1)))*((1+$G$14)^-$Z$18)*F28/((1+$G$14)^(MAX(E28,1))-1))))*(1+$G$14) -> 44584.77346 | AC28: =+AA28+AB28 -> 88714.28571
B29: Insurance (e.g. fences, public liability) - Annual amount | C29: 1 | F29: 5000 | G29: 5000 | H29: 5000 | I29: 5000 | J29: 5000 | K29: 5000 | L29: 5000 | M29: 5000 | N29: 5000 | O29: 5000 | P29: 5000 | Q29: 5000 | R29: 5000 | S29: 5000 | T29: 5000 | U29: 5000 | V29: 5000 | W29: 5000 | X29: 5000 | Y29: 5000 | Z29: 5000 | AA29: =+SUMPRODUCT(G29:Z29,$G$35:$Z$35) -> 73549.18709 | AB29: =(IF(ISBLANK(C29),0,IF(D29,0,((1+$G$14)^MOD($Z$18-C29,MAX(E29,1)))*((1+$G$14)^-$Z$18)*F29/((1+$G$14)^(MAX(E29,1))-1))))*(1+$G$14) -> 74307.95577 | AC29: =+AA29+AB29 -> 147857.1429
B30: Business management/ Administration costs - Estimated business management costs associated with biobank site | C30: 1 | F30: 5000 | G30: 5000 | H30: 5000 | I30: 5000 | J30: 5000 | K30: 5000 | L30: 5000 | M30: 5000 | N30: 5000 | O30: 5000 | P30: 5000 | Q30: 5000 | R30: 5000 | S30: 5000 | T30: 5000 | U30: 5000 | V30: 5000 | W30: 5000 | X30: 5000 | Y30: 5000 | Z30: 5000 | AA30: =+SUMPRODUCT(G30:Z30,$G$35:$Z$35) -> 73549.18709 | AB30: =(IF(ISBLANK(C30),0,IF(D30,0,((1+$G$14)^MOD($Z$18-C30,MAX(E30,1)))*((1+$G$14)^-$Z$18)*F30/((1+$G$14)^(MAX(E30,1))-1))))*(1+$G$14) -> 74307.95577 | AC30: =+AA30+AB30 -> 147857.1429
B31: Annual monitoring & reporting requirements per biobanking agreement - Annual expected landowner time to complete annual reporting requirements | C31: 1 | F31: 500 | G31: 500 | H31: 500 | I31: 500 | J31: 500 | K31: 500 | L31: 500 | M31: 500 | N31: 500 | O31: 500 | P31: 500 | Q31: 500 | R31: 500 | S31: 500 | T31: 500 | U31: 500 | V31: 500 | W31: 500 | X31: 500 | Y31: 500 | Z31: 500 | AA31: =+SUMPRODUCT(G31:Z31,$G$35:$Z$35) -> 7354.918709 | AB31: =(IF(ISBLANK(C31),0,IF(D31,0,((1+$G$14)^MOD($Z$18-C31,MAX(E31,1)))*((1+$G$14)^-$Z$18)*F31/((1+$G$14)^(MAX(E31,1))-1))))*(1+$G$14) -> 7430.795577 | AC31: =+AA31+AB31 -> 14785.71429
F32: Biobank site management cost in today's value | G32: =SUM(G27:G31)+SUM(G19:G25) -> 104725 | H32: 64725 | I32: 64725 | J32: 88725 | K32: 84725 | L32: 22725 | M32: 22725 | N32: 23725 | O32: 19725 | P32: 19726.5 | Q32: 19725 | R32: 23725 | S32: 19725 | T32: 19725 | U32: 19725 | V32: 23725 | W32: 19725 | X32: 19725 | Y32: 19725 | Z32: 23726.5 | AC32: Total Trust Fund Deposit
F33: Present Value (PV) of the biobank site management cost | G33: =G32*(1+$G$14)^-(G18-1) -> 104725 | H33: 62536.23188 | I33: 60421.48008 | J33: 80024.86656 | K33: 73832.94274 | L33: 19133.84022 | M33: 18486.80214 | N33: 18647.63554 | O33: 14979.39295 | P33: 14473.94402 | Q33: 13983.4236 | R33: 16250.33706 | S33: 13053.67556 | T33: 12612.24692 | U33: 12185.74581 | V33: 14161.22993 | W33: 11375.52411 | X33: 10990.84455 | Y33: 10619.17348 | Z33: 12341.47399 | AA33: =SUM(AA27:AA31)+SUM(AA19:AA25) -> 594835.8111 | AB33: =SUM(AB27:AB31)+SUM(AB19:AB25) -> 347663.1627 | AC33: =+AA33+AB33 -> 942498.9738
E35: Discount factors | G35: =+(1+$G$14)^-(G18-1) -> 1 | H35: 0.9661835749 | I35: 0.9335107004 | J35: 0.9019427057 | K35: 0.8714422277 | L35: 0.8419731669 | M35: 0.8135006443 | N35: 0.7859909607 | O35: 0.7594115562 | P35: 0.7337309722 | Q35: 0.7089188137 | R35: 0.6849457137 | S35: 0.6617832983 | T35: 0.6394041529 | U35: 0.6177817903 | V35: 0.5968906186 | W35: 0.5767059117 | X35: 0.5572037794 | Y35: 0.5383611396 | Z35: 0.5201556904
G38: Year | AA38: Present value of payments during first 20 yrs | AB38: Present value of payments after 20 yrs | AC38: Present value of all payments
G39: 1 | H39: 2 | I39: 3 | J39: 4 | K39: 5 | L39: 6 | M39: 7 | N39: 8 | O39: 9 | P39: 10 | Q39: 11 | R39: 12 | S39: 13 | T39: 14 | U39: 15 | V39: 16 | W39: 17 | X39: 18 | Y39: 19 | Z39: 20
B40: Annual biobank site management costs in today's values | G40: =G32 -> 104725 | H40: 64725 | I40: 64725 | J40: 88725 | K40: 84725 | L40: 22725 | M40: 22725 | N40: 23725 | O40: 19725 | P40: 19726.5 | Q40: 19725 | R40: 23725 | S40: 19725 | T40: 19725 | U40: 19725 | V40: 23725 | W40: 19725 | X40: 19725 | Y40: 19725 | Z40: 23726.5 | AA40: =AA33 -> 594835.8111 | AB40: =AB33 -> 347663.1627 | AC40: =AC33 -> 942498.9738
B41: Proposed payment schedule for annual compliance | G41: =G27 -> 1225 | H41: 1225 | I41: 1225 | J41: 1225 | K41: 1225 | L41: 1225 | M41: 1225 | N41: 1225 | O41: 1225 | P41: 1225 | Q41: 1225 | R41: 1225 | S41: 1225 | T41: 1225 | U41: 1225 | V41: 1225 | W41: 1225 | X41: 1225 | Y41: 1225 | Z41: 1225 | AA41: 18019.55084 | AB41: 18205.44916 | AC41: 36225
B42: ="Total amount payable to landowner"&IF($C$8="yes", " (excluding GST)","") -> Total amount payable to landowner (excluding GST) | G42: =G40-G41 -> 103500 | H42: 63500 | I42: 63500 | J42: 87500 | K42: 83500 | L42: 21500 | M42: 21500 | N42: 22500 | O42: 18500 | P42: 18501.5 | Q42: 18500 | R42: 22500 | S42: 18500 | T42: 18500 | U42: 18500 | V42: 22500 | W42: 18500 | X42: 18500 | Y42: 18500 | Z42: 22501.5 | AA42: 576816.2603 | AB42: 329457.7135 | AC42: 906273.9738
B43: =IF($C$8="yes","GST payable to landowner","") -> GST payable to landowner | G43: =IF($C$8="Yes",G42*0.1,"") -> 10350 | H43: 6350 | I43: 6350 | J43: 8750 | K43: 8350 | L43: 2150 | M43: 2150 | N43: 2250 | O43: 1850 | P43: 1850.15 | Q43: 1850 | R43: 2250 | S43: 1850 | T43: 1850 | U43: 1850 | V43: 2250 | W43: 1850 | X43: 1850 | Y43: 1850 | Z43: 2250.15 | AA43: 57681.62603 | AB43: 32945.77135 | AC43: 90627.39738
B44: =IF($C$8="yes","Total amount payable to landowner (including GST)","") -> Total amount payable to landowner (including GST) | G44: =IF($C$8="Yes",G42*1.1,"") -> 113850 | H44: 69850 | I44: 69850 | J44: 96250 | K44: 91850 | L44: 23650 | M44: 23650 | N44: 24750 | O44: 20350 | P44: 20351.65 | Q44: 20350 | R44: 24750 | S44: 20350 | T44: 20350 | U44: 20350 | V44: 24750 | W44: 20350 | X44: 20350 | Y44: 20350 | Z44: 24751.65 | AA44: 634497.8863 | AB44: 362403.4849 | AC44: 996901.3712
F92: Data for spreadsheet function use only
C94: 1
C95: =+C94+1 -> 2 | G95: Mand | H95: Rec
C96: 3 | F96: cell | G96: =+ADDRESS(18+$G$98,1) -> $A$25 | H96: =+ADDRESS($G$98+$H$98+20,1) -> $A$31
C97: 4 | F97: row num | G97: =RIGHT($G$96,LEN($G$96)-FIND("$",$G$96,3)) -> 25 | H97: =RIGHT($H$96,LEN($H$96)-FIND("$",$H$96,3)) -> 31
C98: 5 | F98: mand count | G98: =+COUNT(G19:G25) -> 7 | H98: =+COUNT(G28:G31) -> 4
C99: 6
C100: 7
C101: 8 | F101: Yes
C102: 9 | F102: No
C103: 10
C104: 11
C105: 12
C106: 13
C107: 14
C108: 15
C109: 16
C110: 17
C111: 18
C112: 19
C113: 20

Sheet Explanation of PV (hidden)
